Cogmind - Beta 16 @@@ ROGUE MODE // 2025.11.25 @ 19:41:30 Player: Boris Result: Defending 0bPrime! Performance ------------- Evolutions (8) 4000 Regions Visited (21) 4200 Robots Destroyed (950) 4750 Value Destroyed (65171) 65171 Prototype IDs (186) 3720 Alien Tech Used (5) 1000 Bonus (63613) 63613 TOTAL SCORE: 146454 Bonus ------- High Alert Combat Kills 42354 Follower Combat Kills 2002 Built PL-3XN's Obliterator 1000 Entered Garrisons 400 Used RIF Installer 1000 Network Hubs Disabled 400 Registered with UFD 300 Met Optimus in HQ 500 Met Zhirov 300 Built Enhanced Grunts 300 Met R17 at Cetus 500 Found Hidden Lab 3000 Met R17 at Research 2000 Scanned by Researcher 500 Met Optimus at Protoforge 1000 Executed Drillbomb Mission 10000 Win 3000 Friendly Fire -4943 Cogmind --------- Core Integrity 33/1450 Matter 295/300 Energy 590/590 System Corruption 6% Temperature Cool (0) Movement Walking (99) Location 0bPrime Parts ------- > --- POWER (3) -------- Improved Quantum Reactor Concept Zero-point Core Concept Zero-point Core > --- PROPULSION (6) --- Biometal Leg Enhanced Biometal Leg Enhanced Biometal Leg Enhanced Biometal Leg Enhanced Biometal Leg Enhanced Biometal Leg > --- UTILITY (12) ----- Concept Thermoelectric Network Concept Antigrav Storage Unit Experimental Targeting Computer Experimental Core Analyzer Experimental Armor Integrity Analyzer Experimental Weapon Cycler Concept Reaction Jets Concept Phase Shift Module SHELL Armor Concept Hardlight Director > --- WEAPON (3) ------- Concept Plasma Driver Concept Miniperforator Concept Helical Railcannon > --- INVENTORY (25) --- 2N-1CE's Frost Array Concept Thermoelectric Network Concept Chromion Battery (800) Concept Chromion Battery (800) Experimental Optical Array Experimental Targeting Computer Experimental Targeting Computer Concept Melee Reflex Suite Advanced Particle Accelerator Experimental Kinecellerator Experimental Weapon Cycler Femtoactuators Concept Cloak Mesh Concept Cloak Mesh Graphene Brace Crosscalibrator Concept Disintegration Ray (48) Concept Helical Railcannon Concept Helical Railcannon Concept Smart ZDS Peak State ------------ > --- POWER ------------ Concept Zero-point Core Concept Zero-point Core Concept Zero-point Core > --- PROPULSION ------- Improved Thunder Leg Experimental Biometal Leg Experimental Armored Exoskeleton > --- UTILITY ---------- Concept Thermoelectric Network Concept Antigrav Storage Unit Concept Countertargeting System Experimental Core Analyzer Experimental Armor Integrity Analyzer Concept Reaction Jets Concept Phase Shift Module Concept Cloak Mesh SHELL Armor Concept Hardlight Director > --- WEAPON ----------- Concept Plasma Driver Concept Miniperforator Concept Miniperforator > --- INVENTORY -------- 2N-1CE's Frost Array Concept Thermoelectric Network Concept Chromion Battery Concept Chromion Battery Concept NT7 Matterbank Concept NT7 Matterbank Concept Melee Reflex Suite Precision Matter Filter Advanced Particle Accelerator Experimental Kinecellerator Experimental Kinecellerator Experimental Weapon Cycler Experimental Weapon Cycler Femtoactuators Concept Cloak Mesh Graphene Brace Crosscalibrator Transdimensional Reconstructor Concept Disintegration Ray Concept Plasma Driver Concept Plasma Driver Concept Helical Railcannon Concept Helical Railcannon Concept Helical Railcannon Concept Smart ZDS [Rating: 301] Favorites ----------- Power Concept Zero-point Core Engine Subdweller Power Source Power Core Concept Zero-point Core Reactor Improved Quantum Reactor Propulsion Centrium Leg Treads Light Treads Leg Centrium Leg Wheel Compact Wheel Hover Unit Antigrav System Flight Unit Cooled Cesium-ion Thruster Utility High-capacity Storage Unit Device Experimental Weapon Cycler Storage High-capacity Storage Unit Processor Experimental Targeting Computer Hackware Hacking Suite Protection SHELL Armor Weapon Maul Energy Gun Spread Laser Energy Cannon Concept Plasma Driver Ballistic Gun KE Penetrator Ballistic Cannon Concept Miniperforator Launcher Concept Smart ZDS Special Weapon LU-1G1's Laser Shovel Impact Weapon Maul Slashing Weapon Sigix Broadsword Piercing Weapon Experimental Jetlance Build | -11 -10 -10 -8 -8 -6 -6 -6 -6 -5 -5 -5 -5 -5 -4 -4 -4 -3 -3 -2 -2 -2 ------- Run | Yrd Mat Sub Rec Scr Fac Gar Fac Gar Fac Ext Cet Arc Hub Fac Arm Lab Res Tes Res Qua Frg Slots Evolved 16 | . . . . . 8 . . . 2 . . . . 2 . . 2 . 2 . . Power 1 | . . . . . 1 . . . . . . . . . . . . . . . . Propulsion 4 | . . . . . 3 . . . . . . . . . . . . . 1 . . Utility 10 | . . . . . 3 . . . 2 . . . . 2 . . 2 . 1 . . Weapon 1 | . . . . . 1 . . . . . . . . . . . . . . . . Parts Attached 379 | 7 7 16 7 8 19 9 21 11 11 9 14 . 21 22 48 7 14 14 2 12 100 Power 48 | 1 . 2 . . 3 1 1 2 2 1 3 . 5 1 5 . 3 1 . 2 15 Engine 7 | 1 . 2 . . 1 . 1 1 1 . . . . . . . . . . . . Core 11 | . . . . . 1 1 . 1 1 1 1 . . 1 1 . . . . . 3 Reactor 30 | . . . . . 1 . . . . . 2 . 5 . 4 . 3 1 . 2 12 Propulsion 72 | 2 . 3 2 4 4 . 7 1 . . 2 . 5 3 16 . 2 . . 2 19 Treads 14 | 2 . 2 2 . 2 . 1 . . . 2 . . 1 2 . . . . . . Leg 49 | . . . . . . . 6 1 . . . . 5 1 13 . 2 . . 2 19 Wheel 7 | . . 1 . 4 2 . . . . . . . . . . . . . . . . Hover 1 | . . . . . . . . . . . . . . 1 . . . . . . . Flight 1 | . . . . . . . . . . . . . . . 1 . . . . . . Utility 164 | 1 3 5 3 1 9 4 8 5 6 3 4 . 9 14 14 3 8 8 2 4 50 Device 90 | . 2 1 1 . 3 3 4 3 3 1 . . 6 10 11 3 2 4 . 4 29 Storage 8 | 1 1 1 . . . . . . . . . . 1 1 . . . . . . 3 Processor 28 | . . . . . 2 . 3 1 1 . . . 1 1 1 . 4 . . . 14 Hackware 14 | . . . 1 . 2 1 1 . . . . . 1 . 1 . 1 2 2 . 2 Protection 24 | . . 3 1 1 2 . . 1 2 2 4 . . 2 1 . 1 2 . . 2 Artifact . | . . . . . . . . . . . . . . . . . . . . . . Weapon 95 | 3 4 6 2 3 3 4 5 3 3 5 5 . 2 4 13 4 1 5 . 4 16 Energy Gun 25 | 2 2 1 1 . 1 2 1 . 1 . . . . 3 3 3 1 1 . 1 2 Energy Cannon 13 | . . 1 . . . 1 . 2 . . 1 . . . 1 . . 2 . 2 3 Ballistic Gun 30 | 1 . 2 . 1 1 1 3 1 1 4 2 . 1 1 7 . . 1 . . 3 Ballistic Cannon 7 | . . . . 1 . . . . . . . . . . 1 . . . . . 5 Launcher 4 | . . 1 . . 1 . . . . . . . . . 1 . . . . . 1 Special Weapon 6 | . . . . 1 . . 1 . 1 1 1 . . . . 1 . . . . . Impact Weapon 4 | . 2 1 1 . . . . . . . . . . . . . . . . . . Slashing Weapon 3 | . . . . . . . . . . . 1 . 1 . . . . . . 1 . Piercing Weapon 3 | . . . . . . . . . . . . . . . . . . 1 . . 2 Special Melee Weapon . | . . . . . . . . . . . . . . . . . . . . . . Unidentified Prototypes 38 | . . . . 1 1 . . . . . . . 6 2 4 6 . . . 3 15 Corrupted Parts 9 | . . . . . . . . . . . . . . . 2 2 . . . . 5 System Corruption 42 | . . . . . . . . . . . . . . . 11 14 . . . . 17 Parts Lost 70 | . . 6 1 . . . 6 4 . 1 1 . 2 12 11 . 1 4 . 1 20 Power 10 | . . 1 . . . . 1 2 . . . . . 2 1 . . 1 . 1 1 Propulsion 17 | . . 2 1 . . . 3 . . 1 . . 1 2 3 . . . . . 4 Utility 24 | . . 2 . . . . 1 . . . 1 . 1 3 4 . 1 2 . . 9 Weapon 19 | . . 1 . . . . 1 2 . . . . . 5 3 . . 1 . . 6 Highest Loss Streak 7 | . . 3 1 . . . 2 2 . 1 1 . 1 7 4 . 1 1 . 1 2 To Critical Strikes 2 | . . . . . . . . . . 1 . . . . . . . . . . 1 Average Backups 16 | 2 11 8 16 15 18 18 18 17 17 17 17 17 17 17 17 15 18 18 18 17 21 Power . | . 1 . . . . . . . 1 1 1 1 . . . . . . . . . Propulsion . | . . . 1 . . . 1 . . . . . . . . 1 . . . . . Utility 9 | . 3 3 7 7 11 10 10 8 9 8 7 8 8 11 9 9 11 11 13 10 14 Weapon 4 | . 7 3 7 6 4 6 5 6 4 5 5 6 5 2 3 3 3 4 3 3 4 Tool/Special . | . . . . . . . . . . . . . . . . . . . . . . Unused Backups 59 | . 1 5 2 . 7 2 1 1 1 3 3 . 1 5 1 . 1 3 . 2 20 Power 5 | . . . 1 . . . . . . 1 1 . . . . . . . . . 2 Propulsion 2 | . . 1 . . . . . . . . . . . . . . . . . . 1 Utility 40 | . . 2 1 . 5 2 1 1 1 1 1 . 1 3 1 . 1 2 . 2 15 Weapon 12 | . 1 2 . . 2 . . . . 1 1 . . 2 . . . 1 . . 2 Tool/Special . | . . . . . . . . . . . . . . . . . . . . . . Average Slot Usage (%) 91 | . 99 89 99 100 88 93 93 99 99 99 92 88 90 91 94 84 98 96 84 86 82 Engine 5 | . 14 12 14 14 5 5 3 . . . . . . . . . . . . . . Core 2 | . . . . . 2 4 5 8 9 10 6 . . 1 . . . . . . 5 Reactor 4 | . . . . . 2 . 1 1 . . 3 11 11 7 9 10 12 12 12 11 6 Treads 9 | . 28 26 27 18 4 5 4 . . . 5 11 8 1 2 . . . . . . Leg 12 | . . . . . . . 4 34 31 27 16 5 10 23 20 25 22 22 20 24 19 Wheel 2 | . . 1 . 9 19 22 17 . . . . . . . . . . . . . . Device 12 | . 13 10 2 . 5 14 10 10 19 17 14 17 12 9 15 21 18 11 4 9 19 Storage 6 | . 14 5 14 14 6 5 5 5 5 5 5 5 5 5 5 5 4 4 4 4 4 Processor 7 | . . . . . 6 . 6 5 6 10 11 11 13 17 14 10 16 18 16 14 10 Hackware 4 | . . . 7 9 5 5 5 5 5 5 . . . 5 6 5 5 8 9 8 . Protection 3 | . . 4 3 4 6 4 3 4 3 3 5 5 5 3 2 . 2 4 4 4 4 Energy Gun 4 | . 10 2 10 12 8 13 7 6 5 4 3 5 3 5 . 1 9 6 . . . Energy Cannon 2 | . . 9 . . . 1 . 3 3 . 1 . . 1 . . 3 3 8 4 3 Ballistic Gun 3 | . . 3 5 4 4 4 11 5 5 11 3 5 11 6 12 . . . . . . Impact Weapon 4 | . 17 12 11 10 2 . . . . . . . . . . . . . . . . Peak Build Rating 301 | 6 11 16 19 24 60 81 122 121 135 136 131 128 147 151 146 143 172 190 192 232 301 Average Rating 125 | 5 9 13 17 18 49 74 84 112 126 130 120 126 134 133 133 124 163 171 187 217 265 On Entrance 101 | . 6 10 16 19 22 54 78 119 110 133 130 125 128 137 114 130 141 171 183 186 228 Avg Prop Armor Cover (%) 6 | . . 8 . 3 6 7 7 . . . 4 3 2 6 8 . . . . . . Naked Turns . | . . . . . . . . . . . . . . . . . . . . . . Heaviest Build 181 | 14 32 62 55 64 90 88 93 85 90 88 105 107 111 114 117 102 124 151 151 166 181 Greatest Support 182 | 40 40 40 40 40 48 48 135 143 143 143 160 160 160 150 150 145 150 150 150 182 182 Greatest Overweight (x) 9 | 1 . 1 1 3 5 2 9 . . . 1 . 1 . 1 . . 1 1 1 2 Average Overweight (x) . | . . . 1 1 2 1 1 . . . . . . . . . . . . . . Largest Inventory Capacity 25 | 8 15 20 20 20 20 20 20 20 20 20 20 20 20 20 20 20 20 20 20 20 25 Average Capacity 19 | 7 14 10 20 20 20 20 20 20 20 20 20 20 20 20 20 20 20 20 20 20 23 Most Carried 25 | 3 15 20 20 20 20 20 20 20 20 20 20 20 20 20 20 20 20 20 20 20 25 Average Carried 18 | 2 11 9 19 17 19 19 19 19 19 19 19 19 19 19 19 17 19 19 20 19 21 Final Capacity 25 | 8 15 20 20 20 20 20 20 20 20 20 20 20 20 20 20 20 20 20 20 20 25 Final Carried 20 | 3 14 20 20 15 19 20 20 20 20 20 20 19 20 20 20 20 20 20 20 20 20 Class Distribution -------------------- 27% | Scavenger-Gunner 18% | Commander-Mutant 15% | Mutant 7% | Scavenger-Mutant 6% | Scavenger-Tank 6% | Hacker-Mutant 5% | Scavenger-Gladiator 3% | Subdweller-Mutant Dominant Class ---------------- Mutant | -10/Materials Mutant | -10/Subcaves Commander-Mutant | -8/Recycling Commander-Mutant | -8/Scraptown Commander-Mutant | -6/Factory Scavenger-Tank | -6/Garrison Scavenger-Tank | -6/Factory Scavenger-Gunner | -6/Garrison Scavenger-Gunner | -5/Factory Commander-Gunner | -5/Extension Commander-Mutant | -5/Cetus Commander-Mutant | -5/Archives Scavenger-Tank | -5/Hub_04(d) Scavenger-Gunner | -4/Factory Scavenger-Gunner | -4/Armory Scavenger-Mutant | -4/Lab Scavenger-Gunner | -3/Research Hacker-Gunner | -3/Testing Hacker-Gunner | -2/Research Hacker-Mutant | -2/Quarantine Scavenger-Gunner | -2/Protoforge Resources | -11 -10 -10 -8 -8 -6 -6 -6 -6 -5 -5 -5 -5 -5 -4 -4 -4 -3 -3 -2 -2 -2 ----------- Run | Yrd Mat Sub Rec Scr Fac Gar Fac Gar Fac Ext Cet Arc Hub Fac Arm Lab Res Tes Res Qua Frg Matter Collected 52117 | 215 153 365 124 218 344 531 1208 869 248 623 303 . 1119 801 3277 323 508 527 13 336 40012 Remotely 10 | . . . . . . . . . 10 . . . . . . . . . . . . Salvage Created 47948 | 16 413 672 717 240 359 644 2371 1389 322 1431 537 . 1826 2024 4488 . 676 2345 50 1215 26213 Parts 2129 | 4 20 42 26 14 24 20 109 53 16 66 26 . 93 74 236 . 17 86 5 41 1157 Haulers Intercepted 7 | . 2 . . . . . 1 . . . . . 1 1 . . 1 . . . 1 Recyclers Shooed 8 | 1 . . . . 1 . 2 . 1 2 . . . . . . 1 . . . . Parts Field Recycled . | . . . . . . . . . . . . . . . . . . . . . . Retrieved Matter . | . . . . . . . . . . . . . . . . . . . . . . Parts Self-Destructed 16 | . . 14 . 2 . . . . . . . . . . . . . . . . . Prevented . | . . . . . . . . . . . . . . . . . . . . . . Parts Restored 11 | . . . . . . . . . . . . . . . . . . . . . 11 Faulty 11 | . . . . . . . . . . . . . . . . . . . . . 11 Kills | -11 -10 -10 -8 -8 -6 -6 -6 -6 -5 -5 -5 -5 -5 -4 -4 -4 -3 -3 -2 -2 -2 ------- Run | Yrd Mat Sub Rec Scr Fac Gar Fac Gar Fac Ext Cet Arc Hub Fac Arm Lab Res Tes Res Qua Frg Combat Hostiles Destroyed 938 | . 12 17 8 4 5 13 31 25 2 21 4 . 24 25 63 . 8 30 . 16 630 Melee 38 | . 2 . 1 . . . . . . . . . . . . . . . . 2 33 Guns 188 | . 6 3 5 3 2 12 27 17 . 18 . . 20 13 41 . 5 9 . . 7 Cannons 297 | . . 10 . 1 2 1 1 5 . . . . 3 1 11 . 1 10 . 9 242 AOE 309 | . . 4 . . 1 . 3 . . 3 . . . 1 7 . . 4 . . 286 Classes Destroyed 39 | 2 4 5 5 2 1 3 2 1 . . . . 2 . 2 . . 1 . 2 7 Worker 13 | 1 2 . . . . . 3 . . . . . 5 . . . . 1 1 . . Builder 6 | . . . . . . . 1 . . . . . . 3 . . . 2 . . . Tunneler 2 | 1 . . . . . . 1 . . . . . . . . . . . . . . Hauler 10 | . 2 . . . . . 1 . . . . . 1 1 . . 1 . . . 4 Recycler 11 | . . . 5 . 1 . 2 . 1 1 . . . . . . . 1 . . . Carrier 14 | . . . . . . . . . . . . . . . . . . . . . 14 Mechanic 30 | . . . . . . . 1 . . . . . . . . . . . . . 29 Operator 7 | . 1 . . . . . . . . 2 . . 1 . 1 . . . 1 . 1 Drone 35 | . . . . . . . . . . . . . . . . . . . . . 35 Turret 2 | . . 2 . . . . . . . . . . . . . . . . . . . Watcher 15 | . . . . . . 1 . . . 1 2 . 1 . 5 . . 2 . 3 . Swarmer 102 | . 3 6 . . 1 3 2 4 . 3 . . . . 6 . 2 4 . 4 64 Cutter 2 | . . . . . . . . . . . . . 2 . . . . . . . . Saboteur 18 | . . . . . . . . . . . . . . . 1 . . . . . 17 Grunt 196 | . 9 . 1 . 1 6 17 11 . 14 . . 4 8 20 . 1 14 . . 90 Brawler 25 | . . . 1 . . . . 1 . . . . . . 3 . . . . . 20 Duelist 35 | . . . . . . 2 . . . . . . . . 2 . . . . . 31 Protector 28 | . . . 1 . . . . . . . . . 2 . 1 . . . . . 24 Researcher 4 | . . . . . . . . . . . . . . . . . . 1 . . 3 Sentry 48 | . . 1 3 . 1 1 3 2 1 3 . . 2 6 8 . 2 3 . 2 10 Demolisher 2 | . . . . . . . . . . . . . . . 1 . . . . . 1 Specialist 24 | . . . . . . 1 5 . . . . . . . 6 . . . . . 12 Hunter 89 | . . . 1 . . . 3 3 . 1 . . 3 6 2 . 2 4 . 4 60 Programmer 94 | . . . 1 . 1 . 1 3 . . . . 4 5 10 . . 5 . 2 62 Heavy 1 | . . . . . . . . . . . . . 1 . . . . . . . . Q-Series 1 | . . . . . . . . . . . . . . . . . . . . 1 . Behemoth 5 | . . . . . . . . 1 1 . . . . . 1 . 1 . . . 1 Armor Guard 2 | . . . . . . . . . . . . . . . 2 . . . . . . Cetus Guard 4 | . . . . . . . . . . . 4 . . . . . . . . . . S7 Guard 1 | . . . . . . . . . . . . . . . . . . . . 1 . Lightning 6 | . . . . . . . . . . . . . 6 . . . . . . . . Hotshot 9 | . . . . . . . . . . . . . . . . . . . . . 9 Decapitator 10 | . . . . . . . . . . . . . . . . . . . . . 10 Immortal 7 | . . . . . . . . . . . . . . . . . . . . . 7 Striker 82 | . . . . . . . . . . . . . . . . . . . . . 82 Executioner 86 | . . . . . . . . . . . . . . . . . . . . . 86 Alpha 7 4 | . . . . . . . . . . . . . . . . . . . . 2 2 V-Series 6 | . . . . . . . . . . . . . . . . . . . . . 6 Artisan 1 | . . 1 . . . . . . . . . . . . . . . . . . . Cobbler 1 | . . 1 . . . . . . . . . . . . . . . . . . . Subdweller 10 | . . 10 . . . . . . . . . . . . . . . . . . . Federalist 1 | . . . . 1 . . . . . . . . . . . . . . . . . Scrapper 3 | . . . . 3 . . . . . . . . . . . . . . . . . Elite 3 | . . . . . . . . . . . . . . . . . . . . . 3 Scrapoid 7 | . . . . . 1 . . . . . 1 . . . 2 . . . . . 3 Scraphulk 1 | . . . . . . . . . . . . . . . . . . . . . 1 Best Kill Streak 39 | 1 7 6 3 2 1 4 9 5 1 7 4 . 5 10 9 . 2 7 1 8 39 Combat Bots Only 39 | . 6 4 3 2 1 4 7 5 1 7 3 . 3 8 9 . 2 6 . 6 39 Max Kills in Single Turn 8 | 1 2 4 1 1 1 2 3 2 1 2 1 . 2 1 5 . 1 3 1 1 8 Gunslinging 1 | . . . . . . 1 . 1 . . . . 1 . . . . . . . . Exploded 8 | . . 3 . . 1 . 3 . . 2 . . . 1 2 . . 1 . . 8 Melee 2 | . 1 . 1 . . . . . . . . . . . . . . . . 1 2 Uniques/NPCs Destroyed 1 | . . . . . . . . . . . 1 . . . . . . . . . . A7 (-5/Cetus) Combat | -11 -10 -10 -8 -8 -6 -6 -6 -6 -5 -5 -5 -5 -5 -4 -4 -4 -3 -3 -2 -2 -2 -------- Run | Yrd Mat Sub Rec Scr Fac Gar Fac Gar Fac Ext Cet Arc Hub Fac Arm Lab Res Tes Res Qua Frg Hostile Shots Fired 3932 | . 48 62 16 14 17 55 192 134 28 33 13 . 181 207 364 . 42 143 . 204 2179 Missed 1801 | . 8 14 2 8 4 16 72 38 13 8 6 . 19 70 130 . 20 57 . 56 1260 Deflected 2 | . . . . . . . . . . . . . . . 2 . . . . . . Hits 2131 | . 40 48 14 6 13 39 120 96 15 25 7 . 162 137 234 . 22 86 . 148 919 Melee 100 | . . . . . . . . . . . . . 2 . 5 . . . . . 93 Projectile 2031 | . 40 48 14 6 13 39 120 96 15 25 7 . 160 137 229 . 22 86 . 148 826 AOE 27 | . . 3 . . . . . . . . . . . . 4 . . . . 16 4 Critical Strikes 157 | . . . 2 . 1 1 1 2 . 4 1 . 23 6 7 . . 3 . 11 95 Actively Blocked 43 | . . . . . . . . . . . . . . . 1 . . . . . 42 Part Disruptions 14 | . . . . . . . 3 . . . . . . . 1 . . 1 . 2 7 Damage Taken 43698 | . 376 1059 230 81 242 530 1847 1281 185 471 107 510 2984 3115 4771 . 391 1377 . 2909 21232 Core 3358 | . 66 114 26 8 . 100 156 139 20 37 . 104 319 429 314 . 91 47 . 143 1245 Absorbed by Shields 9058 | . . . . 4 . 52 . 47 . 53 76 . . . . . . 75 . 1536 7215 Reduced by Siege Mode 259 | . . . . . . . . . . . . . 259 . . . . . . . . Redirected to Shielding 128 | . . . . . . . . . . . . . . . . . . . . . 128 Ignored by Resistances 2619 | . . . . . . . . . 5 . . . 1886 . . . . 126 . 271 331 Regen/Repaired (Parts) 14248 | . . . . . 120 . . . . . . . . 163 173 . 60 275 . 2164 11293 Core Remaining (%) 49 | 100 . . . 14 . . . 53 . . . . 52 . . 35 . 89 . . 2 Volleys Fired 1732 | 6 13 50 17 15 10 35 68 92 20 51 15 2 90 104 143 2 24 83 5 106 781 Largest 4 | 1 2 2 2 2 3 4 4 4 3 3 3 1 3 3 3 1 3 3 1 2 3 Hottest 420 | 20 130 130 90 68 168 268 268 235 184 160 124 10 164 244 230 60 296 296 120 205 420 Shots Fired 3169 | 6 26 61 22 23 23 98 220 172 22 129 17 2 228 169 384 3 65 145 5 106 1243 Gun 1575 | 6 26 24 22 15 17 87 204 114 7 125 . . 216 123 360 1 50 83 . 9 86 Cannon 1307 | . . 32 . 8 4 11 11 57 14 . 4 . 12 45 10 . 15 55 5 97 927 Launcher 262 | . . 5 . . 2 . 2 1 . 2 8 . . . 13 . . . . . 229 Special 25 | . . . . . . . 3 . 1 2 5 2 . 1 1 2 . 7 . . 1 Kinetic 1365 | 6 . 13 14 23 11 22 151 46 1 89 . . 147 61 347 . . 6 . 2 426 Thermal 1260 | . 22 48 8 . 10 76 64 76 6 36 . . 69 63 23 2 65 102 5 81 504 Explosive 170 | . . . . . . . . . . . . . . . . . . . . . 170 Electromagnetic 350 | . 4 . . . 2 . 2 50 14 2 12 . 12 45 13 1 . 31 . 23 139 Entropic 4 | . . . . . . . . . . . . . . . . . . . . . 4 Robot Hit Streak 42 | 3 11 11 12 7 12 20 11 9 7 30 10 3 25 42 30 . 31 23 3 25 33 Robot Miss Streak 14 | 1 4 3 1 4 4 6 6 5 1 3 2 . 4 3 2 . 3 2 . 2 14 Penetration Max 3 | . . . . . . . 1 1 . 1 . . 1 1 3 . . . . . 2 Secondary Targets 38 | . . . . . . 4 7 3 . 2 . . 8 3 7 . 2 1 . . 1 Max Gunslinging Chain 1 | . . . . . . 1 1 1 . 1 . . 1 1 1 . 1 1 . . 1 Capacitor 57 | . . . . . . . . . . . . . . 57 . . . . . . . Shots Hit Robots 2250 | 4 38 53 21 14 14 59 141 96 15 99 26 2 152 129 278 . 41 117 2 107 842 Core Hits 1787 | 1 36 39 12 4 14 44 89 60 5 57 18 . 75 54 152 . 17 56 2 36 1016 Critical Kills 199 | . . . . . . . 5 1 . 1 . . 8 3 27 . . . . . 154 Critical Parts Destroyed 239 | . 3 3 3 . . 1 3 . . 2 . . 13 3 29 . . . . . 179 Critical Strikes 537 | . 3 3 3 1 . 3 10 4 1 5 1 . 24 19 66 . 4 5 . 2 383 Burn 33 | . . . . . . 2 2 3 . 2 . . 3 11 1 . 4 5 . . . Meltdown 22 | . . . . . . . . . . . . . . . . . . . . . 22 Destroy 430 | . . 1 1 . . 1 8 1 . 3 . . 21 6 59 . . . . . 329 Blast 13 | . . . . 1 . . . . . . . . . . 6 . . . . . 6 Corrupt 4 | . . . . . . . . . 1 . . . . 2 . . . . . 1 . Smash 7 | . 3 2 2 . . . . . . . . . . . . . . . . . . Sever 14 | . . . . . . . . . . . 1 . . . . . . . . 1 12 Impale 14 | . . . . . . . . . . . . . . . . . . . . . 14 Melee Attacks 318 | . 29 42 12 4 8 1 1 . . . 18 . . . . . . 9 . 27 167 Impact 97 | . 29 42 12 4 8 1 1 . . . . . . . . . . . . . . Slashing 170 | . . . . . . . . . . . 18 . . . . . . . . 27 125 Piercing 51 | . . . . . . . . . . . . . . . . . . 9 . . 42 Sneak Attacks 36 | . 3 . 3 . 1 1 . . . . 18 . . . . . . 1 . . 9 Combat Hostiles . | . . . . . . . . . . . . . . . . . . . . . . Follow-up Attacks 14 | . 1 . . . . . . . . . . . . . . . . . . . 13 Damage Inflicted 212625 | 52 1185 1955 683 273 605 1447 4475 2762 395 2753 1877 . 4946 4091 6810 . 1244 6429 108 5427 165108 Guns 29377 | 51 340 415 292 174 200 1299 3905 1744 113 2679 . . 4412 2730 4978 . 908 1849 . 320 2968 Cannons 49313 | . . 523 . 84 87 106 124 952 282 . 94 . 452 1251 813 . 332 2679 82 3540 37912 Explosions 119545 | . 27 327 . . 237 . 443 66 . 74 759 . . 104 1019 . . 1494 . . 114995 Melee 14062 | . 803 690 385 . 56 42 . . . . 1024 . . . . . . 318 . 1567 9177 Ramming 322 | 1 15 . 6 15 25 . 3 . . . . . 82 . . . 4 89 26 . 56 Kinetic 28296 | 51 . 484 171 258 130 162 3024 656 . 1930 . . 3000 1238 5293 . . 134 . 150 11615 Thermal 49546 | . 319 781 121 . 271 1243 1181 1263 113 749 146 . 1412 1551 498 . 1240 4704 82 2950 30922 Explosive 103222 | . . . . . . . . . . . . . . 51 . . . . . . 103171 Electromagnetic 17015 | . 48 . . . 123 . 267 843 282 74 707 . 452 1251 1019 . . 1184 . 760 10005 Impact 1976 | . 803 690 385 . 56 42 . . . . . . . . . . . . . . . Slashing 10245 | . . . . . . . . . . . 1024 . . . . . . . . 1567 7654 Piercing 1841 | . . . . . . . . . . . . . . . . . . 318 . . 1523 Entropic 162 | . . . . . . . . . . . . . . . . . . . . . 162 Highest Corruption 35 | . . . . . 1 1 3 6 . . . . 15 4 21 35 . 6 . 10 22 Average Corruption 6 | . . . . . 1 1 1 5 . . . . 12 2 4 21 . 5 . 6 6 Corruption Purged 56 | . . . . . . . . . . . . . . . 2 . . . . 5 49 Corruption Blocked . | . . . . . . . . . . . . . . . . . . . . . . Effects 396 | . . . . . 4 5 16 21 . . . . 36 14 49 30 . 25 . 34 162 Message Errors 94 | . . . . . 1 . 3 5 . . . . 8 2 11 11 . 4 . 8 41 Matter Fused 84 | . . . . . 1 2 4 6 . . . . 5 3 9 3 . 3 . 6 42 Heat Flow Errors 41 | . . . . . . 2 . 1 . . . . 4 . 7 4 . 3 . 2 18 Energy Discharges 49 | . . . . . 1 . 3 3 . . . . 5 1 4 7 . 6 . 4 15 Parts Rejected 5 | . . . . . . . . . . . . . . . 1 . . . . . 4 Parts Fused 5 | . . . . . . . . . . . . . 2 . 1 1 . 1 . . . Data Loss (minor) 58 | . . . . . . 1 5 3 . . . . 2 3 10 . . 6 . 10 18 Data Loss (major) 11 | . . . . . 1 . . 1 . . . . 1 1 . 2 . . . 1 4 Misfires 11 | . . . . . . . . 1 . . . . 1 2 4 1 . . . . 2 Alerts 12 | . . . . . . . . 1 . . . . 2 . 1 1 . 2 . 2 3 Misdirections 3 | . . . . . . . . . . . . . 1 . . . . . . . 2 Weapon Failures 23 | . . . . . . . 1 . . . . . 5 2 1 . . . . 1 13 Overload Shots 1 | . . . . . . . . . . . . . . . . . . 1 . . . Overflow Damage 16460 | . 363 141 238 . . . . 2 . . 32 . . 17 78 . 27 495 11 85 14971 Projectiles 2302 | . . 26 . . . . . 2 . . . . . 17 15 . 27 98 . 85 2032 Explosions 12183 | . 12 . . . . . . . . . . . . . 63 . . 397 . . 11711 Melee 1975 | . 351 115 238 . . . . . . . 32 . . . . . . . 11 . 1228 Knockbacks 75 | . 1 4 1 2 2 . . . . . . . . . 2 . . . . . 63 Impact 7 | . 1 4 1 . 1 . . . . . . . . . . . . . . . . Kinetic 65 | . . . . 2 1 . . . . . . . . . 1 . . . . . 61 Secondary 3 | . . . . . . . . . . . . . . . 1 . . . . . 2 Self-Inflicted Damage 501 | . . . . 7 . . 55 42 . . . . . . 71 . . . . . 326 Shots 20 | . . . . . . . 1 1 . . . . . . 3 . . . . . 15 Rammed 11 | . 2 . . 2 2 . 1 . . . . . 4 . . . . . . . . Targets Rammed 27 | 1 3 . 1 2 2 . 1 . . . . . 5 . . . 1 7 1 . 3 Kicked 13 | . . . . . . . . . . . . . 1 . . . 1 7 1 . 3 Crushed 3 | 1 1 . 1 . . . . . . . . . . . . . . . . . . Highest Temperature 461 | . 225 36 60 36 69 461 193 337 . . 59 . 306 288 381 225 304 88 84 165 213 Average Temperature 85 | . 86 18 24 15 25 157 66 98 . . 38 . 106 102 73 100 110 33 43 87 83 Received Heat Transfer 6272 | . 120 108 54 45 54 221 447 312 12 141 8 . 147 521 764 . 9 182 . 93 3034 Thermoelectric Energy+ 4479 | . . . . . . . . . . . . . . . . . . . . . 4479 Effects 4 | . . . . . . 1 . . . . . . 1 1 . . 1 . . . . Interference 3 | . . . . . . . . . . . . . 1 1 . . 1 . . . . Matter Decay 1 | . . . . . . 1 . . . . . . . . . . . . . . . Siege Activations 5 | . . . . . . . . . . . . . 5 . . . . . . . . Total Turns 171 | . . . . . . . . . . . . . 171 . . . . . . . . Longest Duration 49 | . . . . . . . . . . . . . 49 . . . . . . . . Martial Activations . | . . . . . . . . . . . . . . . . . . . . . . Shielding Activations 3 | . . . . . . . . . . . . . . . 3 . . . . . . Total Turns 29 | . . . . . . . . . . . . . . . 29 . . . . . . Longest Duration 19 | . . . . . . . . . . . . . . . 19 . . . . . . Robots Disrupted 1 | . . . . . . . . . . . . . . . . . . . . . 1 Combat Hostiles 1 | . . . . . . . . . . . . . . . . . . . . . 1 Robots Corrupted 78 | . 4 . 3 . . . . 2 2 . 4 . 1 8 5 . . 5 . 4 40 Combat Hostiles 73 | . 4 . 2 . . . . 2 2 . 4 . 1 8 4 . . 5 . 4 37 Parts Fried 149 | . 1 1 6 . . . 1 5 4 . 4 . 8 19 8 . . 12 1 2 77 Impact Corruptions 28 | . 13 4 9 . . . . . . . . . . . . . . . 1 . 1 Robots Melted 31 | . . . . . . . . 1 . . . . . 2 . . 2 2 . 1 23 Combat Hostiles 27 | . . . . . . . . 1 . . . . . 2 . . 2 2 . 1 19 Parts Melted 126 | . . . . . . 8 5 5 . 1 . . . 21 1 . 11 19 . 1 54 Heat Transferred 44950 | . 410 1018 150 . 361 2975 2600 2925 148 1110 150 . 1777 3278 771 . 2346 5473 74 2562 16822 Parts Sabotaged . | . . . . . . . . . . . . . . . . . . . . . . Parts Stolen . | . . . . . . . . . . . . . . . . . . . . . . Parts Stripped . | . . . . . . . . . . . . . . . . . . . . . . Power Chain Reactions 12 | . 1 . . . 1 . 2 1 . 1 1 . . 1 . . . . . . 4 Alert | -11 -10 -10 -8 -8 -6 -6 -6 -6 -5 -5 -5 -5 -5 -4 -4 -4 -3 -3 -2 -2 -2 ------- Run | Yrd Mat Sub Rec Scr Fac Gar Fac Gar Fac Ext Cet Arc Hub Fac Arm Lab Res Tes Res Qua Frg Maximum Alert Level 5 | . 1 . . . . 2 2 4 3 3 3 2 2 2 4 . . 3 2 1 5 Low Security (%) 38 | 100 85 . 100 . 100 31 30 . . 67 . . 48 45 . . 100 48 96 93 1 Level 1 11 | . 14 . . . . 37 54 5 41 10 . 69 31 10 23 . . 24 . 6 3 Level 2 12 | . . . . . . 31 15 31 57 12 85 30 20 44 54 . . 5 3 . 1 Level 3 5 | . . . . . . . . 59 1 9 14 . . . 16 . . 20 . . 2 Level 4 2 | . . . . . . . . 4 . . . . . . 5 . . . . . 5 Level 5 29 | . . . . . . . . . . . . . . . . . . . . . 84 High Security . | . . . . . . . . . . . . . . . . . . . . . . Max Security . | . . . . . . . . . . . . . . . . . . . . . . Peak Influence 16506 | 5 253 . 94 . 109 484 527 1228 700 836 723 488 573 680 1342 . 83 808 435 218 16506 Initial 644 | . 3 . 52 . . 20 254 357 644 115 449 241 150 186 321 . . 4 435 47 100 Average 2301 | . 59 . 24 . 40 277 275 786 464 265 630 325 265 367 571 . 20 289 114 132 6198 Influence Increases 29857 | 10 388 190 404 . 438 464 986 911 199 1197 354 390 887 1072 2057 . 244 1255 80 705 17626 Destroy 0b10 Robot/C 18320 | . 240 180 180 . 220 260 620 500 80 580 160 160 440 500 1280 . 160 620 . 280 11860 Destroy 0b10 Robot/NC 815 | 10 25 . 30 . 5 5 45 . 5 25 10 20 50 25 35 . 5 35 10 15 460 Destroy Leader 2788 | . 54 10 . . 60 30 142 60 40 54 . . 114 134 278 . 52 74 . 46 1640 Allied During Kill 1241 | . . . 19 . 75 . . 4 17 410 170 174 . 5 26 . . . . . 341 Successful Hack 670 | . 18 . 24 . 42 24 13 12 12 38 . . 26 67 37 . . 160 18 163 16 Select Force Hacks 180 | . 30 . 150 . . . . . . . . . . . . . . . . . . Disable Machine 1290 | . . . . . 30 . 45 . 15 60 . 30 105 75 225 . . 120 30 75 480 Anti-Garrison Action 400 | . . . . . . 50 . 200 . . . . . . . . . . . . 150 Destroy Structure 2908 | . 6 . 1 . 6 35 61 90 30 30 14 6 122 146 146 . 12 156 22 66 1959 Partial Spotted 30 | . . . . . . . . . . . . . 15 . . . . . . . 15 Lose Combat Pursuer 1215 | . 15 . . . . 60 60 45 . . . . 15 120 30 . 15 90 . 60 705 Influence Decreases 13351 | 5 176 297 449 65 409 9 960 193 1190 630 555 562 937 797 1377 1336 236 489 769 611 1299 Entered New Map 4652 | . 2 105 58 65 . 9 230 153 584 122 355 362 281 195 335 1336 . 4 339 38 79 Time Decay 6461 | 5 174 180 381 . 349 . 510 . 416 478 190 40 486 482 622 . 234 451 130 563 770 Lost Part 638 | . . 12 10 . . . 60 40 . 10 10 . 20 120 110 . 2 34 . 10 200 Lost Ally 400 | . . . . . 60 . 10 . 40 20 . 160 . . 10 . . . . . 100 Purge Threat 1200 | . . . . . . . 150 . 150 . . . 150 . 300 . . . 300 . 150 Squads Dispatched 107 | . 4 . . . 13 . 11 . 6 4 . . 8 7 15 . 8 7 3 5 16 Investigation 43 | . 3 . . . 7 . 4 . 5 3 . . 1 3 2 . 6 1 2 . 6 Extermination 27 | . . . . . 3 . 1 . 1 . . . 2 3 4 . 1 4 1 5 2 Reinforcement 28 | . 1 . . . . . 6 . . 1 . . 5 1 6 . 1 2 . . 5 Assault 6 | . . . . . . . . . . . . . . . 3 . . . . . 3 Garrison 3 | . . . . . 3 . . . . . . . . . . . . . . . . Intercept . | . . . . . . . . . . . . . . . . . . . . . . Searches Triggered . | . . . . . . . . . . . . . . . . . . . . . . Unchained Authorized 3 | . . . . . . . . . . . . . . . . . . 1 1 1 . Construction Impeded 4 | . . . . . . . 3 . . . . . . . . . . . . . 1 Haulers Reinforced 3 | . . . . . . . 2 . . . . . 1 . . . . . . . . Active Scanning Responses . | . . . . . . . . . . . . . . . . . . . . . . Cargo Convoy Interrupts 1 | . . . . . . . 1 . . . . . . . . . . . . . . Stealth | -11 -10 -10 -8 -8 -6 -6 -6 -6 -5 -5 -5 -5 -5 -4 -4 -4 -3 -3 -2 -2 -2 --------- Run | Yrd Mat Sub Rec Scr Fac Gar Fac Gar Fac Ext Cet Arc Hub Fac Arm Lab Res Tes Res Qua Frg Distress Signals 57 | . 5 . . . . . . . . 3 2 . 1 . 5 . 11 6 . . 24 Communications Jammed 79 | . . . . . . . . . . . . . . . 19 . . 16 . . 44 Distress Signals 79 | . . . . . . . . . . . . . . . 19 . . 16 . . 44 Times Spotted 1152 | . 24 19 9 10 10 16 45 28 4 32 10 1 35 38 84 . 13 48 3 31 692 Peak Tracking Total 15 | . 6 6 3 2 3 4 8 6 1 4 5 1 6 6 10 . 2 5 2 9 15 Tactical Retreats 66 | . 1 1 . 1 . 2 4 2 . . . . 1 3 2 . 1 6 . 3 39 Traps | -11 -10 -10 -8 -8 -6 -6 -6 -6 -5 -5 -5 -5 -5 -4 -4 -4 -3 -3 -2 -2 -2 ------- Run | Yrd Mat Sub Rec Scr Fac Gar Fac Gar Fac Ext Cet Arc Hub Fac Arm Lab Res Tes Res Qua Frg Traps Triggered 29 | . 1 3 . . . . . 5 1 2 . . . 2 7 . . . . 1 7 Indirectly 5 | . . . . . . . . 1 . . . . . . 4 . . . . . . Trap Hack Attempts . | . . . . . . . . . . . . . . . . . . . . . . Triggered . | . . . . . . . . . . . . . . . . . . . . . . Disarmed . | . . . . . . . . . . . . . . . . . . . . . . Reprogrammed . | . . . . . . . . . . . . . . . . . . . . . . Reused 1 | . . . . 1 . . . . . . . . . . . . . . . . . Traps Extracted . | . . . . . . . . . . . . . . . . . . . . . . Installed 1 | . . . . 1 . . . . . . . . . . . . . . . . . Triggered . | . . . . . . . . . . . . . . . . . . . . . . Most Traps Carried 1 | . . 1 1 1 . . . . . . . . . . . . . . . . . Machines | -11 -10 -10 -8 -8 -6 -6 -6 -6 -5 -5 -5 -5 -5 -4 -4 -4 -3 -3 -2 -2 -2 ---------- Run | Yrd Mat Sub Rec Scr Fac Gar Fac Gar Fac Ext Cet Arc Hub Fac Arm Lab Res Tes Res Qua Frg Machines Disabled 125 | . . 5 . 2 2 1 3 2 1 4 . 2 7 10 16 6 . 8 3 6 47 Max in Single Turn 4 | . . 4 . 1 1 1 2 1 1 1 . . 2 2 2 1 . 1 1 1 3 Garrison Access 7 | . . . . . . . 1 . . . . . . 1 . . 1 1 1 1 1 Garrison Relay 3 | . . . . . . 1 . 2 . . . . . . . . . . . . . Network Hub 2 | . . . . . . . . . . . . . 2 . . . . . . . . Machines Repaired . | . . . . . . . . . . . . . . . . . . . . . . Machines Dismantled 3 | . . . . . . . . . . 1 . . 2 . . . . . . . . Machines Sabotaged . | . . . . . . . . . . . . . . . . . . . . . . Overloaded Fab Kills . | . . . . . . . . . . . . . . . . . . . . . . Hacking | -11 -10 -10 -8 -8 -6 -6 -6 -6 -5 -5 -5 -5 -5 -4 -4 -4 -3 -3 -2 -2 -2 --------- Run | Yrd Mat Sub Rec Scr Fac Gar Fac Gar Fac Ext Cet Arc Hub Fac Arm Lab Res Tes Res Qua Frg Machines Accessed 155 | . 8 2 11 1 16 2 13 1 10 12 . . 4 10 13 . 7 12 6 13 14 Terminals 87 | . 6 . 5 . 9 2 6 1 5 10 . . 4 3 9 . 1 7 3 9 7 Fabricators 9 | . . . . . . . 1 . . . . . . 1 1 . 1 1 . . 4 Repair Stations 7 | . . . . . 1 . . . . . . . . 1 1 . 1 1 . 2 . Recycling Units 33 | . 2 . 5 . 5 . 4 . 3 2 . . . 3 2 . 2 . 2 . 3 Scanalyzers 7 | . . . . . . . . . 2 . . . . 1 . . 1 2 . 1 . Garrison Access 8 | . . . . . 1 . 2 . . . . . . 1 . . 1 1 1 1 . Total Hacks 502 | . 16 4 38 4 41 4 30 2 21 21 . . 8 46 57 . 18 54 33 70 35 Successful 242 | . 5 4 26 4 22 2 16 1 11 10 . . 5 22 25 . 10 26 13 28 12 Failed 258 | . 11 . 11 . 19 2 14 1 10 11 . . 3 24 32 . 7 28 20 42 23 Catastrophic 52 | . 1 . . . 3 1 2 . 2 2 . . 2 3 7 . . 10 6 7 6 Database Lockouts 2 | . . . 1 . . . . . . . . . . . . . 1 . . . . Manual 259 | . 10 . 23 1 28 3 14 . 9 7 1 . 6 13 37 . 4 26 17 37 23 Terminals 304 | . 14 . 18 . 24 4 15 2 10 17 . . 8 11 47 . 4 38 26 51 15 Fabricators 25 | . . . . . . . 2 . . . . . . 6 4 . 1 1 . . 11 Repair Stations 31 | . . . . . 2 . . . . . . . . 11 1 . 3 3 . 11 . Recycling Units 80 | . 2 . 15 . 12 . 8 . 5 4 . . . 10 5 . 5 . 5 . 9 Scanalyzers 27 | . . . . . . . . . 6 . . . . 6 . . 3 10 . 2 . Garrison Access 22 | . . . . . 3 . 5 . . . . . . 2 . . 2 2 2 6 . Terminal Hacks 77 | . 4 4 8 4 6 2 4 1 2 8 . . 2 2 11 . . 5 5 6 3 Record 12 | . . 3 5 4 . . . . . . . . . . . . . . . . . Part Schematic 1 | . . . 1 . . . . . . . . . . . . . . . . . . Robot Schematic 1 | . . . 1 . . . . . . . . . . . . . . . . . . Robot Analysis 2 | . 1 . . . . . . . . . . . . . . . . 1 . . . Prototype ID Bank 1 | . . . . . . . . . . 1 . . . . . . . . . . . Open Door 7 | . . . . . . . . . 1 5 . . . . 1 . . . . . . Branch Access Points 1 | . . . . . . . . . . . . . . . . . . . 1 . . Emergency Access Points 1 | . . . . . . . . 1 . . . . . . . . . . . . . Terminal Index 4 | . . . . . 1 . . . . . . . . . 1 . . 1 1 . . Recycling Unit Index 1 | . . . . . 1 . . . . . . . . . . . . . . . . Unreport Threat 8 | . . . . . . . 1 . 1 . . . 1 . 2 . . . 2 . 1 Locate Traps 7 | . . . . . 1 . 1 . . 1 . . . . 2 . . . 1 1 . Recall Investigation 1 | . . . . . 1 . . . . . . . . . . . . . . . . Recall Extermination 3 | . . . . . . . . . . . . . . . . . . 1 . 2 . Hauler Manifests 3 | . . . 1 . . . 1 . . . . . . 1 . . . . . . . Registered Components 2 | . 1 . . . . . . . . . . . . . 1 . . . . . . Registered Prototypes 1 | . . . . . . . . . . . . . . . . . . 1 . . . Zone Layout 17 | . 2 . . . 2 . 1 . . 1 . . 1 1 4 . . 1 . 3 1 Garrison Registry 1 | . . . . . . 1 . . . . . . . . . . . . . . . Patrol Navigation 1 | . . . . . . 1 . . . . . . . . . . . . . . . Proto ID Catalog 2 | . . 1 . . . . . . . . . . . . . . . . . . 1 Fabricator Hacks 9 | . . . . . . . 1 . . . . . . 2 . . 1 1 . . 4 Network Status 4 | . . . . . . . 1 . . . . . . 1 . . 1 1 . . . Load Schematic 3 | . . . . . . . . . . . . . . . . . . . . . 3 Build 2 | . . . . . . . . . . . . . . 1 . . . . . . 1 Repair Station Hacks 17 | . . . . . 2 . . . . . . . . 5 . . 2 2 . 6 . Scan Component 10 | . . . . . 1 . . . . . . . . 3 . . 1 1 . 4 . Repair 7 | . . . . . 1 . . . . . . . . 2 . . 1 1 . 2 . Recycling Unit Hacks 10 | . . . 3 . 1 . 1 . . . . . . 1 2 . 1 . 1 . . Retrieve Components 10 | . . . 3 . 1 . 1 . . . . . . 1 2 . 1 . 1 . . Scanalyzer 20 | . . . . . . . . . 6 . . . . 4 . . 2 7 . 1 . Insert Component 2 | . . . . . . . . . . . . . . 1 . . . 1 . . . Analyze 1 | . . . . . . . . . . . . . . 1 . . . . . . . Retrieve Study 17 | . . . . . . . . . 6 . . . . 2 . . 2 6 . 1 . Garrison Access Hacks 15 | . . . . . 1 . 4 . . . . . . 2 . . 2 2 2 2 . Unlock Access 2 | . . . . . 1 . 1 . . . . . . . . . . . . . . Seal Access 6 | . . . . . . . 1 . . . . . . 1 . . 1 1 1 1 . Coupler Status 7 | . . . . . . . 2 . . . . . . 1 . . 1 1 1 1 . Unauthorized Hacks 94 | . 1 . 15 . 12 . 6 . 3 2 . . 3 6 12 . 2 9 5 13 5 Terminals 62 | . . . 10 . 8 . 1 . 1 1 . . 3 3 10 . . 9 3 11 2 Track 8 | . . . . . 1 . . . . . . . 2 . 1 . . 1 . 2 1 Assimilate 1 | . . . . . . . . . . . . . . . 1 . . . . . . Botnet 21 | . . . 5 . 2 . 1 . . . . . . 1 2 . . 4 1 4 1 Operators 5 | . . . . . . . . . 1 1 . . . . 1 . . 1 1 . . Skim 26 | . . . 5 . 5 . . . . . . . . 2 5 . . 3 1 5 . Sabotage 1 | . . . . . . . . . . . . . 1 . . . . . . . . Fabricators 1 | . . . . . . . . . . . . . . . . . . . . . 1 Recompile 1 | . . . . . . . . . . . . . . . . . . . . . 1 Repair Stations 1 | . . . . . . . . . . . . . . . 1 . . . . . . Patch 1 | . . . . . . . . . . . . . . . 1 . . . . . . Recycling Units 27 | . 1 . 5 . 3 . 5 . 2 1 . . . 3 1 . 2 . 2 . 2 Reject 1 | . . . . . . . 1 . . . . . . . . . . . . . . Mask 1 | . . . . . . . 1 . . . . . . . . . . . . . . Tunnel 6 | . 1 . 5 . . . . . . . . . . . . . . . . . . Fedlink 15 | . . . . . 2 . 3 . 2 . . . . 2 1 . 2 . 2 . 1 Scrapoids 4 | . . . . . 1 . . . . 1 . . . 1 . . . . . . 1 Scanalyzers 1 | . . . . . . . . . . . . . . . . . . . . 1 . Researchers 1 | . . . . . . . . . . . . . . . . . . . . 1 . Garrison Access 2 | . . . . . 1 . . . . . . . . . . . . . . 1 . Restock 1 | . . . . . . . . . . . . . . . . . . . . 1 . Reprogram 1 | . . . . . 1 . . . . . . . . . . . . . . . . Data Cores Recovered 1 | . . . . . . . . . . 1 . . . . . . . . . . . Used . | . . . . . . . . . . . . . . . . . . . . . . Hacking Detections 102 | . 5 . 2 . 13 2 9 1 7 9 . . 3 7 9 . 4 7 5 9 10 Full Trace Events 14 | . 1 . . . 4 . 1 . 2 2 . . . . . . 1 1 . . 2 Feedback Events 3 | . . . . . 1 . 1 . . . . . . . . . . . . . 1 Corruption 3 | . . . . . 1 . 1 . . . . . . . . . . . . . 1 Feedback Blocked . | . . . . . . . . . . . . . . . . . . . . . . Robot Schematics Acquired 3 | . . . 1 . . . . . . . . . . . . . . 1 . . 1 Robots Built . | . . . . . . . . . . . . . . . . . . . . . . Authchips . | . . . . . . . . . . . . . . . . . . . . . . Time . | . . . . . . . . . . . . . . . . . . . . . . Total Robot Build Rating . | . . . . . . . . . . . . . . . . . . . . . . Part Schematics Acquired 9 | . . . 1 . . . . . . . . . . 1 . . . 4 . . 3 Parts Built 3 | . . . . . . . . . . . . . . 2 . . . . . . 1 Authchips 1 | . . . . . . . . . . . . . . . . . . . . . 1 Time 95 | . . . . . . . . . . . . . . 39 . . . . . . 56 Total Part Build Rating 20 | . . . . . . . . . . . . . . 14 . . . . . . 6 Part Studies Acquired 17 | . . . . . . . . . 6 . . . . 2 . . 2 6 . 1 . Parts Repaired 7 | . . . . . 1 . . . . . . . . 2 . . 1 1 . 2 . Time 300 | . . . . . 44 . . . . . . . . 149 . . 25 14 . 68 . Parts Recycled . | . . . . . . . . . . . . . . . . . . . . . . Recycled Matter . | . . . . . . . . . . . . . . . . . . . . . . Retrieved Matter . | . . . . . . . . . . . . . . . . . . . . . . Retrieved Components 26 | . . . 12 . 2 . 8 . . . . . . 1 . . 1 . 2 . . Parts Scanalyzed 1 | . . . . . . . . . . . . . . 1 . . . . . . . Part Schematics Acquired 1 | . . . . . . . . . . . . . . 1 . . . . . . . Parts Damaged . | . . . . . . . . . . . . . . . . . . . . . . Bothacking | -11 -10 -10 -8 -8 -6 -6 -6 -6 -5 -5 -5 -5 -5 -4 -4 -4 -3 -3 -2 -2 -2 ------------ Run | Yrd Mat Sub Rec Scr Fac Gar Fac Gar Fac Ext Cet Arc Hub Fac Arm Lab Res Tes Res Qua Frg Used RIF Installer 2 | . . . . . . 1 . 1 . . . . . . . . . . . . . Alert ID Control 1 | . . . . . . . . 1 . . . . . . . . . . . . . Robots Hacked 14 | . . . . . . . 1 . 1 2 2 2 . . 1 . . 5 . . . Non-combat 3 | . . . . . . . 1 . 1 . . . . . . . . 1 . . . Combat 11 | . . . . . . . . . . 2 2 2 . . 1 . . 4 . . . Robot Hacks Applied 15 | . . . . . . . 2 . 1 2 2 2 . . 1 . . 5 . . . parse_system 7 | . . . . . . . . . . 2 2 2 . . 1 . . . . . . drop_inventory 1 | . . . . . . . 1 . . . . . . . . . . . . . . find_recycling 1 | . . . . . . . . . 1 . . . . . . . . . . . . map_route 1 | . . . . . . . . . . . . . . . . . . 1 . . . disable_scanner 4 | . . . . . . . . . . . . . . . . . . 4 . . . formatsys_high 1 | . . . . . . . 1 . . . . . . . . . . . . . . Relay Couplers Released 13 | . . . . . . 3 . 7 . . . . . . . . 1 . . . 2 Machine Destruction 13 | . . . . . . 3 . 7 . . . . . . . . 1 . . . 2 Attached 2 | . . . . . . . 1 . . . . . . . . . . 1 . . . Fabnet Peak Effective % . | . . . . . . . . . . . . . . . . . . . . . . Robots Rewired 19 | . . . 7 . . . . 2 . 10 . . . . . . . . . . . Allies Hacked 1 | . . . . . . . . . . . . . . . 1 . . . . . . Hacks Repelled . | . . . . . . . . . . . . . . . . . . . . . . Allies | -11 -10 -10 -8 -8 -6 -6 -6 -6 -5 -5 -5 -5 -5 -4 -4 -4 -3 -3 -2 -2 -2 -------- Run | Yrd Mat Sub Rec Scr Fac Gar Fac Gar Fac Ext Cet Arc Hub Fac Arm Lab Res Tes Res Qua Frg Total Allies 54 | . . . 7 . 5 . 1 2 . 23 5 . . 5 1 . . . . . 5 Largest Group 26 | . . . 6 5 5 . 1 2 2 22 26 23 . 5 5 . . . . . 5 Highest-Rated Group 1247 | . . . 135 101 146 . 93 75 75 827 1247 972 . 238 235 . . . . . 323 Highest-Rated Ally 159 | . . . 34 27 31 . 93 46 46 159 159 96 . 50 47 . . . . . 67 Total Orders 16 | . . . 1 . 5 . . . 6 . . . . . . . . . . . 4 STAY 9 | . . . 1 . 4 . . . 2 . . . . . . . . . . . 2 FOLLOW 4 | . . . . . 1 . . . 1 . . . . . . . . . . . 2 EXPLORE 3 | . . . . . . . . . 3 . . . . . . . . . . . . Ally Attacks 379 | . . . 13 17 55 . . . 12 59 33 97 . 15 27 . . . . . 51 Total Damage 8109 | . . . 211 204 835 . 29 . 232 1131 899 2335 . 242 683 . . . . . 1308 Kills 53 | . . . 2 4 6 . . . 2 9 4 16 . 1 5 . . . . . 4 Allies Corrupted . | . . . . . . . . . . . . . . . . . . . . . . Allies Melted 6 | . . . . 3 . . . . . . . . . . . . . . . . 3 Intel | -11 -10 -10 -8 -8 -6 -6 -6 -6 -5 -5 -5 -5 -5 -4 -4 -4 -3 -3 -2 -2 -2 ------- Run | Yrd Mat Sub Rec Scr Fac Gar Fac Gar Fac Ext Cet Arc Hub Fac Arm Lab Res Tes Res Qua Frg Active Infowar (turns) 27426 | . 991 3195 . . 1072 2 1381 800 956 1229 384 95 1263 1081 2098 711 1052 1371 267 1716 7762 Optics 15976 | . . 596 . . 1071 . 1381 110 403 1229 384 95 1263 1081 6 . 521 1371 267 1716 4482 Sensors 109 | . . . . . . . . . . . . . . . . . . 107 2 . . IFF 583 | . . . . . . . . . . . . . . . . . . . . 301 282 Structural 3519 | . . . . . . . . . . . . . . . 1263 246 894 557 64 333 162 Seismic 8083 | . 991 3192 . . 321 2 834 735 933 235 182 95 563 . . . . . . . . T.N.C. 94 | . . . . . . . 94 . . . . . . . . . . . . . . Cloaking 6889 | . . . . . . . 22 . . . . . . . 936 . . . . . 5931 Jamming 5498 | . . . . . . . . . . . . . 378 339 2089 711 1052 408 203 4 314 Robot Analysis Total 2 | . 1 . . . . . . . . . . . . . . . . 1 . . . Derelict Logs Recovered 7 | . . 2 . 5 . . . . . . . . . . . . . . . . . Drone Launches 3 | . . . . . . . . . 3 . . . . . . . . . . . . Drone Recoveries 1 | . . . . . . . . . 1 . . . . . . . . . . . . Exploration | -11 -10 -10 -8 -8 -6 -6 -6 -6 -5 -5 -5 -5 -5 -4 -4 -4 -3 -3 -2 -2 -2 ------------- Run | Yrd Mat Sub Rec Scr Fac Gar Fac Gar Fac Ext Cet Arc Hub Fac Arm Lab Res Tes Res Qua Frg Turns Passed 42704 | 110 1251 5584 3499 4685 1072 540 1381 1223 1007 1229 384 95 1263 1259 2104 711 1052 1371 267 1716 10901 Spaces Moved 23112 | 56 500 2550 1234 2223 761 342 856 823 677 765 185 58 572 780 1072 352 743 873 228 1195 6267 Core 9 | 9 . . . . . . . . . . . . . . . . . . . . . Treads 6092 | 47 500 2541 1234 1294 . . . . . . 72 58 346 . . . . . . . . Legs 14221 | . . . . . . . 107 823 677 765 113 . 226 780 1072 352 743 873 228 1195 6267 Wheels 2790 | . . 9 . 929 761 342 749 . . . . . . . . . . . . . . Hover . | . . . . . . . . . . . . . . . . . . . . . . Flight . | . . . . . . . . . . . . . . . . . . . . . . Fastest Speed 50 | 50 160 110 240 117 96 97 97 103 100 100 100 160 100 100 100 120 115 105 105 103 96 Average Speed 137 | 145 160 194 245 193 118 108 112 103 100 100 126 160 136 100 131 120 119 111 105 106 112 Slowest Speed 260 | 160 160 260 260 240 175 130 160 105 103 100 240 160 170 100 190 120 120 175 175 178 235 Overloaded Moves . | . . . . . . . . . . . . . . . . . . . . . . Propulsion Burnouts . | . . . . . . . . . . . . . . . . . . . . . . Robots Hopped . | . . . . . . . . . . . . . . . . . . . . . . Potential Cave-ins 17 | . . . . . . . . . 4 . . . . . 2 . . 2 3 . 6 Cave-ins Triggered . | . . . . . . . . . . . . . . . . . . . . . . Teleports 1 | . . . . . . . . . . . . . . . . . . . . . 1 Exploration Rate (%) 59 | 5 70 98 98 90 18 44 26 74 18 90 60 86 44 17 75 93 27 85 9 91 87 Regions Visited 21 Branch Regions 12 Pre-discovered Areas 16 | . 1 1 7 2 4 . . . . . . . . . 1 . . . . . . Known Exits Taken 6 | . . . . . 1 . 1 . . . . . . 1 1 . . 1 1 . . Unknown Exits Taken 13 | 1 1 1 1 1 . . . . 1 1 1 1 1 . . 1 1 . . 1 . Scrap Searched 17 | . . 8 . 9 . . . . . . . . . . . . . . . . . Spaces Dug 226 | . 4 8 1 7 5 . 14 7 22 . . . 12 23 16 1 1 31 7 6 61 Terrain Destroyed 1306 | . 6 47 1 9 5 2 59 19 23 7 4 . 63 77 56 1 7 80 7 37 796 Melee 21 | . 4 6 1 . 5 . 1 . . . . . . . . . . . . 3 1 Projectile 546 | . . 11 . 2 . 2 12 3 1 4 . . 60 23 9 . 7 8 2 20 382 AOE 473 | . 2 30 . . . . 34 9 . 3 4 . . 40 11 . . 50 . . 290 Terrain Rammed . | . . . . . . . . . . . . . . . . . . . . . . Walls Destroyed . | . . . . . . . . . . . . . . . . . . . . . . Machines Disabled . | . . . . . . . . . . . . . . . . . . . . . . Actions | -11 -10 -10 -8 -8 -6 -6 -6 -6 -5 -5 -5 -5 -5 -4 -4 -4 -3 -3 -2 -2 -2 --------- Run | Yrd Mat Sub Rec Scr Fac Gar Fac Gar Fac Ext Cet Arc Hub Fac Arm Lab Res Tes Res Qua Frg Total 31387 | 74 869 3026 1650 2575 895 431 1115 1073 996 1155 302 61 861 1159 1474 642 866 1158 248 1529 9228 Wait 4317 | 1 300 290 287 303 44 25 105 83 249 216 36 . 110 200 70 251 63 101 12 129 1442 Move 23091 | 56 499 2549 1233 2223 761 340 856 821 676 764 184 57 571 779 1071 351 742 872 227 1194 6265 Hop . | . . . . . . . . . . . . . . . . . . . . . . Pick Up 339 | 3 16 26 5 6 24 8 17 8 10 10 9 . 10 15 28 6 9 16 . 9 104 Fast Attach 200 | 6 1 11 2 2 8 1 3 9 6 . 5 . 16 15 31 7 4 4 1 11 57 Attach 167 | . 1 9 2 2 7 3 11 2 3 . 2 1 4 7 17 7 5 7 . 5 72 Detach 123 | . . 8 . 1 2 2 2 2 . . 1 . 4 2 9 8 2 6 . 6 68 Swap 494 | 2 5 9 5 7 12 12 38 20 14 24 17 . 22 19 56 . 8 36 2 24 162 Drop 398 | . 5 27 5 10 17 4 13 15 18 13 15 1 23 18 46 10 8 17 . 18 115 Fire 1732 | 6 13 50 17 15 10 35 68 92 20 51 15 2 90 104 143 2 24 83 5 106 781 Melee 294 | . 26 42 12 4 8 1 1 . . . 18 . . . . . . 9 . 27 146 Ram 1 | . . . . 1 . . . . . . . . . . . . . . . . . Kick 13 | . . . . . . . . . . . . . 1 . . . 1 7 1 . 3 Crush 11 | . 3 . 1 . 2 . 1 . . . . . 4 . . . . . . . . Escape Stasis 19 | . . . . . . . . 1 . 2 . . . . 3 . . . . . 13 Rewire 168 | . . . 81 . . . . 20 . 67 . . . . . . . . . . . Trap 1 | . . . . 1 . . . . . . . . . . . . . . . . . Miscellaneous 19 | . . 5 . . . . . . . 8 . . 6 . . . . . . . . Route ------- -11/Scrapyard -10/Materials (discovered 4 exits: [*Mat] / [*Min x2] / *Sub) -10/Subcaves (discovered 3 exits: [*Mat x2] / *Rec) -8/Recycling (discovered 2 exits: *Fac / *Scr) -8/Scraptown (discovered 2 exits: *Fac x2) -6/Factory (discovered 4 exits: Fac / *Low x2 / Gar) -6/Garrison (discovered 3 exits: *Fac x3) -6/Factory (discovered 2 exits: *Fac / Gar) -6/Garrison (discovered 3 exits: *Fac x3) -5/Factory (discovered 2 exits: [*Upp] / *Ext) -5/Extension (discovered 2 exits: *Fac / *Cet) -5/Cetus (discovered 2 exits: *Fac / [*Arc]) -5/Archives (discovered 2 exits: *Hub x2) -5/Hub_04(d) (discovered 3 exits: *Fac x3) -4/Factory (discovered 2 exits: *Res / *Arm) -4/Armory (discovered 2 exits: *Res / *Lab) -4/Lab -3/Research (discovered 3 exits: Res x2 / *Tes) -3/Testing -2/Research (discovered 2 exits: *Qua x2) -2/Quarantine (discovered 3 exits: [*Acc] / *Sec / *Frg) -2/Protoforge 0bPrime History --------- Turn | Location | Event 5 | -11/Scrapyard | Discovered new exit (range 16) 111 | -11/Scrapyard | Entered Materials 207 | -10/Materials | Discovered new exit (range 7) 313 | -10/Materials | Build established: Mutant 727 | -10/Materials | Discovered new exit (range 15) 1003 | -10/Materials | Discovered new exit (range 10) 1275 | -10/Materials | Discovered new exit (range 16) 1362 | -10/Materials | Entered Subcaves 1418 | -10/Subcaves | Shifting Twisted Machinery released Humpback 1443 | -10/Subcaves | Shifting Twisted Machinery released Spk. Treads 1591 | -10/Subcaves | A swath of the cavern ceiling suddenly collapsed 1594 | -10/Subcaves | Ambushed by Subdweller buried in earth 1596 | -10/Subcaves | Ambushed by Subdweller buried in earth 1634 | -10/Subcaves | Lost 3 parts (1n1u1w) 2029 | -10/Subcaves | Shifting Twisted Machinery released Sub. Monowheel 2030 | -10/Subcaves | Shifting Twisted Machinery released Scrap Shield 3048 | -10/Subcaves | Shifting Twisted Machinery released Mak. System Shield 3209 | -10/Subcaves | Shifting Twisted Machinery released Sub. Monowheel 3336 | -10/Subcaves | Visited Clippyterm 3341 | -10/Subcaves | Learned location of Section 7 (-2) 3944 | -10/Subcaves | Disturbed a concealed Subdweller 4000 | -10/Subcaves | Discovered new exit (range 15) 4252 | -10/Subcaves | Build established: Subdweller-Mutant 4364 | -10/Subcaves | Visited 4L-MR0's lab 4635 | -10/Subcaves | Discovered new exit (range 6) 5086 | -10/Subcaves | Found Meta Core 5731 | -10/Subcaves | Build established: Mutant 6153 | -10/Subcaves | Ambushed by Subdweller buried in earth 6445 | -10/Subcaves | Core integrity fell below 50% 6457 | -10/Subcaves | Discovered new exit (range 16) 6635 | -10/Subcaves | Ambushed by angry Subdweller bent on revenge 6946 | -10/Subcaves | Entered Recycling 6947 | -8/Recycling | Met a Zionite searching for Scraptown 7324 | -8/Recycling | Scanned before Scraplab entrance 7361 | -8/Recycling | Entered Scraplab 7384 | -8/Recycling | Discovered new exit (range 3) 7838 | -8/Recycling | Core integrity fell below 20% 7968 | -8/Recycling | Discovered new exit (range 16) 8214 | -8/Recycling | Build established: Commander-Mutant 8901 | -8/Recycling | Learned location of 2 exits from Factory 8962 | -8/Recycling | Learned Factory emergency access door positions 9012 | -8/Recycling | Learned 2 Lower Caves zone layouts 9085 | -8/Recycling | Learned Factory non-interactive machine intel 9108 | -8/Recycling | Learned location of Lower Caves (-7) 9183 | -8/Recycling | Learned location of 2 exits from Lower Caves 10445 | -8/Recycling | Entered Scraptown 10445 | -8/Scraptown | Accompanied by 5 allies 10877 | -8/Scraptown | Visited Awakened 11182 | -8/Scraptown | Discovered new exit (range 11) 11317 | -8/Scraptown | Scanned Subdweller tech in exchange for log data 11329 | -8/Scraptown | Learned location of 2 exits from Lower Caves 11331 | -8/Scraptown | Learned location of 1 exit from Lower Caves 11333 | -8/Scraptown | Learned Factory trap positions 11417 | -8/Scraptown | Visited Bundlers 11432 | -8/Scraptown | Received an X-ray algorithm 11547 | -8/Scraptown | Visited Red Mages 11684 | -8/Scraptown | Ran an X-ray algorithm 11811 | -8/Scraptown | Visited Cave Peace 11900 | -8/Scraptown | Visited SPCMW 12027 | -8/Scraptown | Visited Symbiants 12075 | -8/Scraptown | Visited Fellowship of the Rings 12524 | -8/Scraptown | Visited UFD Registry 12525 | -8/Scraptown | Registered with UFD as "Powerslider" 12611 | -8/Scraptown | Visited Scrapoid Pod Storage 12652 | -8/Scraptown | Visited Chapter 10 12700 | -8/Scraptown | Visited DA-N13 Charitable Foundation 12712 | -8/Scraptown | Found DCF Scrap (33 items) 12767 | -8/Scraptown | Visited Curators Association 12858 | -8/Scraptown | Visited Scrap Suit Storage 12892 | -8/Scraptown | Visited Derelict Rescue Squad 12926 | -8/Scraptown | Visited Junk Repository 13293 | -8/Scraptown | Visited A0-MCA Data Center 13326 | -8/Scraptown | Visited Observation Area 13372 | -8/Scraptown | Visited LU-1G1's Boring Crew 13689 | -8/Scraptown | Given a B- rating by A0-MCA 13691 | -8/Scraptown | Found A0-MCA's Component Scanner 13796 | -8/Scraptown | Delivered Scrap Shield to a Scientist 14442 | -8/Scraptown | Warned about trapping Scraptown 14558 | -8/Scraptown | Met Optimus 14558 | -8/Scraptown | Accepted into 0bPrime 14958 | -8/Scraptown | Civil war broke out across Scraptown 14966 | -8/Scraptown | Found Prototype Special Weapon 15073 | -8/Scraptown | Identified LU-1G1's Laser Shovel 15099 | -8/Scraptown | Found PL-3XN's Ring of Power 15125 | -8/Scraptown | Discovered new exit (range 3) 15130 | -8/Scraptown | Entered Factory 15130 | -6/Factory | Evolved 8 slots: Power x1, Propulsion x3, Utility x3, Weapon x1 15131 | -6/Factory | Identified exit to Lower Caves 15132 | -6/Factory | Loaded intel: 100 trap records 15134 | -6/Factory | Loaded intel: 177 non-interactive machine locations 15141 | -6/Factory | Lost 18 allies 15290 | -6/Factory | Scrapoid reinforcements arrived 15512 | -6/Factory | Repaired Gauss Rifle 15641 | -6/Factory | Identified exit to Factory 15687 | -6/Factory | Learned Factory trap positions 15756 | -6/Factory | Learned 2 Lower Caves zone layouts 15757 | -6/Factory | Learned Extension emergency access door positions 15790 | -6/Factory | Learned Hub_04(d) garrison access intel 15924 | -6/Factory | Garrison activated, responded to threat 16039 | -6/Factory | Loaded intel: 7 recycling unit locations 16062 | -6/Factory | Learned location of Protoforge (-2) 16202 | -6/Factory | Identified exit to Garrison 16202 | -6/Factory | Entered Garrison 16238 | -6/Garrison | Discovered new exit (range 56) 16238 | -6/Garrison | Discovered new exit (range 74) 16238 | -6/Garrison | Discovered new exit (range 59) 16261 | -6/Garrison | Attached Meta Core, gained temporary slots: Propulsion, Utility, Weapon 16364 | -6/Garrison | Triggered checkpoint 16438 | -6/Garrison | Installed Relay Interface Framework 16499 | -6/Garrison | Garrison Relay disabled 16576 | -6/Garrison | Build established: Scavenger-Tank 16742 | -6/Garrison | Entered Factory 16743 | -6/Factory | Loaded intel: 101 trap records 16809 | -6/Factory | Loaded intel: 8 recycling unit locations 16912 | -6/Factory | Discovered exit to Factory (range 9) 17768 | -6/Factory | Cargo convoy interrupted 17853 | -6/Factory | Destroyed 7 combat bots 17928 | -6/Factory | Found PL-3XN's Ring of Power 17974 | -6/Factory | Found Tactical Quantum Warhead 18123 | -6/Factory | Identified exit to Garrison 18123 | -6/Factory | Entered Garrison 18215 | -6/Garrison | Triggered checkpoint 18405 | -6/Garrison | Spotted B-75 Beast 18420 | -6/Garrison | Triggered checkpoint 18423 | -6/Garrison | Destroyed B-75 Beast 18521 | -6/Garrison | Triggered checkpoint 18673 | -6/Garrison | Discovered exit to Factory (range 8) 18727 | -6/Garrison | Build established: Scavenger-Gunner 18876 | -6/Garrison | Discovered exit to Factory (range 9) 18899 | -6/Garrison | Spotted B-75 Beast 18953 | -6/Garrison | Triggered checkpoint 19089 | -6/Garrison | Triggered checkpoint 19148 | -6/Garrison | Expanded RIF knowledge: Alert ID Control 19230 | -6/Garrison | Discovered exit to Factory (range 3) 19297 | -6/Garrison | Garrison Relay disabled 19346 | -6/Garrison | Entered Factory 19346 | -5/Factory | Accompanied by 2 allies 19346 | -5/Factory | Evolved 2 slots: Utility x2 19444 | -5/Factory | Discovered new exit (range 4) 19895 | -5/Factory | Spotted B-75 Beast 19931 | -5/Factory | Destroyed B-75 Beast 20017 | -5/Factory | Loaded intel: 8 recycling unit locations 20203 | -5/Factory | Discovered new exit (range 9) 20353 | -5/Factory | Entered Extension 20641 | -5/Extension | Destroyed 7 combat bots 20788 | -5/Extension | Rescued a captive Derelict 20799 | -5/Extension | Rescued A7 20815 | -5/Extension | Rescued a captive Derelict 20879 | -5/Extension | Scrapoid reinforcements arrived 21001 | -5/Extension | Build established: Commander-Gunner 21045 | -5/Extension | Spotted B-75 Beast 21061 | -5/Extension | Allies destroyed B-75 Beast 21062 | -5/Extension | Spotted B-75 Beast 21073 | -5/Extension | Allies destroyed B-75 Beast 21162 | -5/Extension | Rescued a captive Derelict 21240 | -5/Extension | Rescued a captive Derelict 21276 | -5/Extension | Rescued a captive Derelict 21398 | -5/Extension | Rescued a captive Derelict 21428 | -5/Extension | Rescued a captive Derelict 21429 | -5/Extension | Rescued a captive Derelict 21487 | -5/Extension | Discovered new exit (range 10) 21488 | -5/Extension | Discovered new exit (range 6) 21582 | -5/Extension | Entered Cetus 21582 | -5/Cetus | Accompanied by 22 allies (A7) 21587 | -5/Cetus | Acquired a Cetus Manufacturing Module code from A7 21596 | -5/Cetus | Spotted Cetus Guard 21596 | -5/Cetus | Spotted Cetus Guard 21598 | -5/Cetus | Spotted Cetus Guard 21602 | -5/Cetus | Spotted Cetus Guard 21608 | -5/Cetus | Destroyed Cetus Guard 21609 | -5/Cetus | Allies destroyed Cetus Guard 21611 | -5/Cetus | Destroyed Cetus Guard 21613 | -5/Cetus | Destroyed Cetus Guard 21679 | -5/Cetus | Started Cetus Manufacturing Module 21688 | -5/Cetus | Discovered new exit (range 21) 21704 | -5/Cetus | Manufactured an Enhanced Grunt 21707 | -5/Cetus | Spotted Cetus Guard 21711 | -5/Cetus | Spotted Cetus Guard 21714 | -5/Cetus | Discovered new exit (range 22) 21714 | -5/Cetus | Spotted Cetus Guard 21717 | -5/Cetus | Spotted Cetus Guard 21719 | -5/Cetus | Attached CPS modules to Cetus Guard. 21720 | -5/Cetus | Attached CPS modules to Cetus Guard. 21721 | -5/Cetus | Allies destroyed Cetus Guard 21721 | -5/Cetus | Allies destroyed Cetus Guard 21724 | -5/Cetus | Destroyed Cetus Guard 21726 | -5/Cetus | Allies destroyed Cetus Guard 21729 | -5/Cetus | Manufactured an Enhanced Grunt 21735 | -5/Cetus | Met Revision 17 21754 | -5/Cetus | Manufactured an Enhanced Grunt 21779 | -5/Cetus | Manufactured an Enhanced Grunt 21804 | -5/Cetus | Manufactured an Enhanced Grunt 21895 | -5/Cetus | Murdered A7 21899 | -5/Cetus | Extracted ID and sensor layout for unrecognized location from A7's data core 21928 | -5/Cetus | Build established: Commander-Mutant 21966 | -5/Cetus | Entered Archives 21966 | -5/Archives | Accompanied by 23 allies 21986 | -5/Archives | Met Zhirov 21986 | -5/Archives | Discovered new exit (range 22) 21992 | -5/Archives | Reinforcements dispatched to Archives 21992 | -5/Archives | Discovered new exit (range 22) 22037 | -5/Archives | Reinforcements dispatched to Archives 22039 | -5/Archives | Zhirov warped through subspace 22057 | -5/Archives | Zhirov detonated Archives 22061 | -5/Archives | Entered Hub_04(d) 22061 | -5/Hub_04(d) | Discovered new exit (range 10) 22062 | -5/Hub_04(d) | Loaded intel: 1 garrison access location 22088 | -5/Hub_04(d) | Lost 22 allies 22238 | -5/Hub_04(d) | Discovered new exit (range 10) 22358 | -5/Hub_04(d) | Build established: Scavenger-Tank 22457 | -5/Hub_04(d) | Network Hub disabled 22475 | -5/Hub_04(d) | Spotted Lightning 22545 | -5/Hub_04(d) | Spotted Lightning 22548 | -5/Hub_04(d) | Spotted Lightning 22552 | -5/Hub_04(d) | Spotted Lightning 22584 | -5/Hub_04(d) | Destroyed Lightning 22619 | -5/Hub_04(d) | Destroyed Lightning 22633 | -5/Hub_04(d) | Found Prototype Device 22633 | -5/Hub_04(d) | Identified Exp. EM Shield 22648 | -5/Hub_04(d) | Found Prototype Device 22648 | -5/Hub_04(d) | Identified Exp. Phase Shifter 22657 | -5/Hub_04(d) | Found Exp. Phase Shifter 22669 | -5/Hub_04(d) | System corruption reached 10% 22682 | -5/Hub_04(d) | Destroyed Lightning 22733 | -5/Hub_04(d) | Found Prototype Processor 22733 | -5/Hub_04(d) | Identified Exp. Targeting Computer 22867 | -5/Hub_04(d) | Spotted Lightning 22867 | -5/Hub_04(d) | Spotted Lightning 22867 | -5/Hub_04(d) | Spotted Lightning 22900 | -5/Hub_04(d) | Destroyed Lightning 22923 | -5/Hub_04(d) | Destroyed Lightning 22956 | -5/Hub_04(d) | Destroyed Lightning 23027 | -5/Hub_04(d) | Found Exp. Targeting Computer 23065 | -5/Hub_04(d) | Network Hub disabled 23147 | -5/Hub_04(d) | Discovered new exit (range 16) 23291 | -5/Hub_04(d) | Build established: Scavenger-Gunner 23324 | -5/Hub_04(d) | Entered Factory 23324 | -4/Factory | Evolved 2 slots: Utility x2 23325 | -4/Factory | Identified exit to Armory 23377 | -4/Factory | Fabricated Imp. Linear Gravjet? 23464 | -4/Factory | Repaired Adv. KE Penetrator 23515 | -4/Factory | Repaired Imp. Proton Missile Launcher+ 23611 | -4/Factory | Found Quantum Capacitor 23668 | -4/Factory | Loaded intel: 8 recycling unit locations 23851 | -4/Factory | Discovered new exit (range 17) 24098 | -4/Factory | Destroyed 8 combat bots 24307 | -4/Factory | Destroyed 7 combat bots 24314 | -4/Factory | Lost 7 parts (1p2n1u3w) 24455 | -4/Factory | Scrapoid reinforcements arrived 24583 | -4/Factory | Entered Armory 24583 | -4/Armory | Accompanied by 5 allies 24584 | -4/Armory | Met VL-GR5, who suggested a friendly competition 24804 | -4/Armory | Lost the competition with VL-GR5 25691 | -4/Armory | Discovered new exit (range 3) 25784 | -4/Armory | Spotted B-86 Titan 25785 | -4/Armory | Core integrity fell below 50% 25795 | -4/Armory | Destroyed B-86 Titan 25846 | -4/Armory | Found Prototype Launcher 25846 | -4/Armory | Identified Tesla Bomb Launcher 25888 | -4/Armory | Found Adv. Particle Accelerator 25974 | -4/Armory | Learned 4 Quarantine zone layouts 26038 | -4/Armory | Learned location of 2 exits from Research 26093 | -4/Armory | Loaded intel: 15 terminal locations 26137 | -4/Armory | Learned Factory scanalyzer intel 26226 | -4/Armory | Learned Quarantine stockpile data 26259 | -4/Armory | Destroyed 8 combat bots 26272 | -4/Armory | Learned 4 Factory zone layouts 26327 | -4/Armory | Identified exit to Lab 26395 | -4/Armory | Destroyed 9 combat bots 26464 | -4/Armory | Found Launcher Loader 26486 | -4/Armory | Spotted Armor Guard 26486 | -4/Armory | Spotted Armor Guard 26495 | -4/Armory | Destroyed Armor Guard 26495 | -4/Armory | System corruption reached 10% 26496 | -4/Armory | Destroyed Armor Guard 26537 | -4/Armory | Found Corrupted Prototype Device 26537 | -4/Armory | Identified Exp. Weapon Cycler 26550 | -4/Armory | Found Corrupted Exp. Weapon Cycler 26553 | -4/Armory | Lost 4 parts (1p1n1u1w) 26572 | -4/Armory | Breached Obliterator storage 26579 | -4/Armory | Found PL-3XN's Ring of Power 26583 | -4/Armory | First assault squad dispatched 26588 | -4/Armory | Found Disassembled Obliterator 26589 | -4/Armory | Assembled PL-3XN's Obliterator 26638 | -4/Armory | Destroyed 9 combat bots 26657 | -4/Armory | Loaded intel: 2 recycling unit locations 26687 | -4/Armory | Entered Lab 26687 | -4/Lab | Discovered new exit (range 10) 26716 | -4/Lab | Hidden lab's door opened automatically 26716 | -4/Lab | Sensor layout match revealed 26717 | -4/Lab | Gained access to the hidden lab's interior 26886 | -4/Lab | Found Prototype Special Weapon 26886 | -4/Lab | Identified Gui. Remote Datajack 26919 | -4/Lab | Found Alien Artifact 26919 | -4/Lab | Identified Core Expander 26919 | -4/Lab | Installed Core Expander, added new Power slot 26980 | -4/Lab | Found Alien Artifact 26980 | -4/Lab | Identified Integrated Dissipator 26980 | -4/Lab | Installed Integrated Dissipator, increased core heat dissipation (+20) 26988 | -4/Lab | Found Alien Artifact 27001 | -4/Lab | Build established: Scavenger-Mutant 27026 | -4/Lab | Found Prototype Device 27026 | -4/Lab | Identified AEGIS Remote Shield 27256 | -4/Lab | Found Quantum Router 27276 | -4/Lab | Found Prototype Energy Gun 27276 | -4/Lab | Identified Tachyon Dispersion Ray 27280 | -4/Lab | Found Prototype Energy Gun 27280 | -4/Lab | Identified Hyp. EM Gauss Rifle 27354 | -4/Lab | System corruption reached 30% 27398 | -4/Lab | Entered Research 27398 | -3/Research | Evolved 2 slots: Utility x2 27399 | -3/Research | Identified exit to Research 27558 | -3/Research | Central database locked down 27598 | -3/Research | Revision forces began assault on 0b10 27673 | -3/Research | Spotted B-86 Titan 27676 | -3/Research | Build established: Scavenger-Gunner 27688 | -3/Research | Repaired Launcher Loader 27722 | -3/Research | Met up with Revision 17++ 27753 | -3/Research | Destroyed B-86 Titan 27850 | -3/Research | Loaded intel: 5 recycling unit locations 28098 | -3/Research | Research terminal network offline 28236 | -3/Research | Found Spectral Analyzer 28261 | -3/Research | Discovered new exit (range 5) 28450 | -3/Research | Entered Testing 28586 | -3/Testing | Found 2N-1CE's Frost Array 28873 | -3/Testing | Repaired Imp. Medium Armor Plating 28955 | -3/Testing | Discovered exit to Research (range 9) 29034 | -3/Testing | Scanned by Researcher 29109 | -3/Testing | Build established: Hacker-Gunner 29170 | -3/Testing | Found Ghost Barrier 29295 | -3/Testing | Identified Transdimensional Reconstructor 29449 | -3/Testing | Found Potential Cannon 29580 | -3/Testing | Found SHELL Armor 29641 | -3/Testing | Unchained authorized (CL-0N3) 29821 | -3/Testing | Entered Research 29821 | -2/Research | Evolved 2 slots: Propulsion x1, Utility x1 29831 | -2/Research | Identified exit to Quarantine 29912 | -2/Research | Loaded intel: 5 recycling unit locations 29997 | -2/Research | Unchained authorized (CL-0N3) 30088 | -2/Research | Entered Quarantine 30190 | -2/Quarantine | Cryocooling Duct disabled 30205 | -2/Quarantine | Ambient heat levels rising (+20) 30205 | -2/Quarantine | Non-combat units ordered to evacuate 30272 | -2/Quarantine | Unchained authorized (CL-0N3) 30446 | -2/Quarantine | Found Alien Slashing Weapon 30446 | -2/Quarantine | Identified Sigix Broadsword 30489 | -2/Quarantine | Found Alien Artifact 30571 | -2/Quarantine | O-24 Administrator reconstituted as Alpha 7 30571 | -2/Quarantine | Spotted Alpha 7 30587 | -2/Quarantine | Destroyed Alpha 7 30587 | -2/Quarantine | Alpha 7 reconstituted as CL-0N3 30729 | -2/Quarantine | Build established: Hacker-Mutant 30755 | -2/Quarantine | Discovered new exit (range 17) 30856 | -2/Quarantine | Spotted Alpha 7 30896 | -2/Quarantine | System corruption reached 10% 30899 | -2/Quarantine | Destroyed Alpha 7 30906 | -2/Quarantine | Found Enh. Gamma Rifle 30954 | -2/Quarantine | P-80 Master reconstituted as S7 Guard 30954 | -2/Quarantine | Spotted S7 Guard 31019 | -2/Quarantine | Destroyed S7 Guard 31019 | -2/Quarantine | S7 Guard reconstituted as CL-0N3 31028 | -2/Quarantine | Repaired Broken Particle Reactor+ 31145 | -2/Quarantine | Repaired Centrium Leg+ 31326 | -2/Quarantine | Learned location of 1 exit from Research 31364 | -2/Quarantine | Learned Access repair station intel 31391 | -2/Quarantine | Learned Research recycling unit intel 31407 | -2/Quarantine | Learned 4 Research zone layouts 31411 | -2/Quarantine | Identified exit to Section 7 31425 | -2/Quarantine | Learned location of 1 exit from Section 7 31448 | -2/Quarantine | Learned 8 Section 7 zone layouts 31593 | -2/Quarantine | Spotted Fortress 31615 | -2/Quarantine | Found Prototype Device 31615 | -2/Quarantine | Identified Exp. Force Field 31623 | -2/Quarantine | Found Prototype Device 31623 | -2/Quarantine | Identified Thermal Barrier 31764 | -2/Quarantine | P-80 Master reconstituted as Access Guard 31764 | -2/Quarantine | Spotted Access Guard 31799 | -2/Quarantine | Discovered new exit (range 6) 31804 | -2/Quarantine | Entered Protoforge 31896 | -2/Protoforge | Superfortress began startup sequence 31934 | -2/Protoforge | Spotted Hotshot 31934 | -2/Protoforge | Spotted Hotshot 31961 | -2/Protoforge | Destroyed Hotshot 31997 | -2/Protoforge | Destroyed Hotshot 32044 | -2/Protoforge | Destroyed 10 combat bots 32203 | -2/Protoforge | Discovered new exit (range 16) 32203 | -2/Protoforge | Spotted Hotshot 32382 | -2/Protoforge | Found Prototype Device 32382 | -2/Protoforge | Identified Cep. Weapon Articulator 32390 | -2/Protoforge | Additional patrols dispatched to research labs 32402 | -2/Protoforge | Found Prototype Protection 32402 | -2/Protoforge | Identified Cep. Core Shell 32513 | -2/Protoforge | Forge Plexus network access discovered 32557 | -2/Protoforge | Spotted B-90 Cyclops 32590 | -2/Protoforge | Spotted Hotshot 32607 | -2/Protoforge | Destroyed Hotshot 32608 | -2/Protoforge | Spotted Hotshot 32624 | -2/Protoforge | Destroyed Hotshot 32663 | -2/Protoforge | Spotted Overlord 32706 | -2/Protoforge | Destroyed B-90 Cyclops 32804 | -2/Protoforge | First assault squad dispatched 32836 | -2/Protoforge | Spotted EXE-6 32836 | -2/Protoforge | Spotted EXE-6 32836 | -2/Protoforge | Spotted SKR-2 32843 | -2/Protoforge | Spotted SKR-2 32845 | -2/Protoforge | Spotted SKR-2 32847 | -2/Protoforge | Destroyed EXE-6 32850 | -2/Protoforge | Destroyed SKR-2 32870 | -2/Protoforge | Destroyed SKR-2 32944 | -2/Protoforge | Destroyed EXE-6 32979 | -2/Protoforge | UFD initiated attack on Protoforge (Readiness: Low) 32979 | -2/Protoforge | Loaded intel: 3 recycling unit locations 33002 | -2/Protoforge | Spotted EXE-6 33015 | -2/Protoforge | Optimus greeted in Protoforge 33021 | -2/Protoforge | Found Prototype Processor 33021 | -2/Protoforge | Identified Exp. Armor Integrity Analyzer 33025 | -2/Protoforge | Found Prototype Processor 33025 | -2/Protoforge | Identified Exp. Core Analyzer 33032 | -2/Protoforge | Found Exp. Core Analyzer 33080 | -2/Protoforge | Scrapoid reinforcements arrived 33217 | -2/Protoforge | Fabricated Prc. Energy Filter? 33273 | -2/Protoforge | Spotted Striker 33273 | -2/Protoforge | Spotted Executioner 33282 | -2/Protoforge | Destroyed Striker 33283 | -2/Protoforge | Destroyed Executioner 33313 | -2/Protoforge | Destroyed 8 combat bots 33314 | -2/Protoforge | Build established: Scavenger-Mutant 33334 | -2/Protoforge | Found Exp. System Purifier 33341 | -2/Protoforge | Found Exp. System Purifier 33429 | -2/Protoforge | Spotted Executioner 33430 | -2/Protoforge | Spotted Executioner 33430 | -2/Protoforge | Spotted Striker 33435 | -2/Protoforge | Spotted Executioner 33452 | -2/Protoforge | Destroyed Executioner 33458 | -2/Protoforge | Allies destroyed Striker 33464 | -2/Protoforge | Destroyed Executioner 33469 | -2/Protoforge | Allies destroyed Executioner 33495 | -2/Protoforge | Destroyed 11 combat bots 33497 | -2/Protoforge | UFD reported confirmed Drillbomb installation 33510 | -2/Protoforge | Spotted Striker 33511 | -2/Protoforge | Spotted Executioner 33512 | -2/Protoforge | Destroyed Executioner 33531 | -2/Protoforge | Destroyed Decapitator 33534 | -2/Protoforge | Destroyed Striker 33535 | -2/Protoforge | Spotted Decapitator 33538 | -2/Protoforge | Spotted Executioner 33544 | -2/Protoforge | Destroyed Executioner 33544 | -2/Protoforge | Destroyed Decapitator 33563 | -2/Protoforge | Spotted Striker 33563 | -2/Protoforge | Spotted Executioner 33581 | -2/Protoforge | Destroyed 10 combat bots 33601 | -2/Protoforge | Destroyed Striker 33614 | -2/Protoforge | Destroyed Executioner 33617 | -2/Protoforge | Found Prototype Device 33617 | -2/Protoforge | Identified Adv. Kinecellerator 33664 | -2/Protoforge | Spotted Striker 33664 | -2/Protoforge | Spotted Executioner 33675 | -2/Protoforge | Destroyed Striker 33675 | -2/Protoforge | Destroyed Executioner 33695 | -2/Protoforge | Spotted Striker 33698 | -2/Protoforge | Spotted Striker 33704 | -2/Protoforge | Destroyed Striker 33708 | -2/Protoforge | Destroyed Striker 33719 | -2/Protoforge | Spotted Hotshot 33723 | -2/Protoforge | Spotted Striker 33723 | -2/Protoforge | Found Exp. Core Analyzer 33725 | -2/Protoforge | Spotted Executioner 33729 | -2/Protoforge | Destroyed 8 combat bots 33753 | -2/Protoforge | Destroyed Striker 33771 | -2/Protoforge | Destroyed Executioner 33780 | -2/Protoforge | Core integrity fell below 50% 33811 | -2/Protoforge | Destroyed 8 combat bots 33871 | -2/Protoforge | Spotted Executioner 33882 | -2/Protoforge | Spotted Executioner 33884 | -2/Protoforge | Destroyed Executioner 33914 | -2/Protoforge | Found Exp. Targeting Computer 33939 | -2/Protoforge | Spotted Executioner 33939 | -2/Protoforge | Spotted Executioner 33941 | -2/Protoforge | Spotted Striker 33941 | -2/Protoforge | Spotted Striker 33951 | -2/Protoforge | Destroyed Striker 33951 | -2/Protoforge | Destroyed Executioner 33952 | -2/Protoforge | Destroyed Executioner 33952 | -2/Protoforge | Destroyed Striker 33991 | -2/Protoforge | Destroyed 14 combat bots 33993 | -2/Protoforge | Found Corrupted Exp. System Purifier 34009 | -2/Protoforge | Spotted Executioner 34015 | -2/Protoforge | Destroyed Executioner 34015 | -2/Protoforge | Destroyed Hotshot 34135 | -2/Protoforge | Spotted V368-s 34231 | -2/Protoforge | Found Crosscalibrator 34241 | -2/Protoforge | Spotted Immortal 34241 | -2/Protoforge | Spotted Immortal 34251 | -2/Protoforge | Spotted Decapitator 34251 | -2/Protoforge | Spotted Decapitator 34251 | -2/Protoforge | Spotted Decapitator 34251 | -2/Protoforge | Spotted Decapitator 34325 | -2/Protoforge | Destroyed Immortal 34332 | -2/Protoforge | Found Corrupted Prototype Device 34332 | -2/Protoforge | Identified Cep. Antimissile System 34339 | -2/Protoforge | Found Corrupted Prototype Processor 34339 | -2/Protoforge | Identified Exp. Melee Analysis Suite 34353 | -2/Protoforge | Found Exp. Jetlance 34423 | -2/Protoforge | Destroyed Immortal 34428 | -2/Protoforge | Found Prototype Device 34428 | -2/Protoforge | Identified Exp. Cloaking Device 34500 | -2/Protoforge | Destroyed Decapitator 34505 | -2/Protoforge | Destroyed Decapitator 34512 | -2/Protoforge | Destroyed Decapitator 34515 | -2/Protoforge | Destroyed Decapitator 34589 | -2/Protoforge | Found Faulty Cep. Phase Shift Module 34593 | -2/Protoforge | Found Cep. Core Shell 34602 | -2/Protoforge | Found Cep. Reaction Jets 34607 | -2/Protoforge | Found Cep. Hardlight Director 34622 | -2/Protoforge | Build established: Scavenger-Gladiator 34626 | -2/Protoforge | Found Faulty Cep. Phase Shift Module 34652 | -2/Protoforge | Spotted V804-s 34668 | -2/Protoforge | Destroyed V804-s 34681 | -2/Protoforge | Found Cep. Hypertargeting System 34797 | -2/Protoforge | Found Cep. NT7 Matterbank 34804 | -2/Protoforge | Found Cep. Antigrav Storage Unit 34807 | -2/Protoforge | Found Cep. Chromion Battery 34827 | -2/Protoforge | Spotted V717-x 34869 | -2/Protoforge | Destroyed V717-x 34959 | -2/Protoforge | Spotted Decapitator 34959 | -2/Protoforge | Spotted Decapitator 34959 | -2/Protoforge | Spotted Decapitator 34959 | -2/Protoforge | Spotted V086-e 35008 | -2/Protoforge | Spotted Striker 35009 | -2/Protoforge | Spotted Executioner 35022 | -2/Protoforge | Spotted Executioner 35022 | -2/Protoforge | Spotted Executioner 35040 | -2/Protoforge | Destroyed Executioner 35044 | -2/Protoforge | Destroyed Executioner 35071 | -2/Protoforge | Destroyed 8 combat bots 35073 | -2/Protoforge | Destroyed Striker 35222 | -2/Protoforge | Spotted V311-s 35222 | -2/Protoforge | Spotted V384-c 35250 | -2/Protoforge | Found Cep. Zero-point Core 35259 | -2/Protoforge | Spotted V320-i 35264 | -2/Protoforge | Destroyed V320-i 35281 | -2/Protoforge | Destroyed V311-s 35284 | -2/Protoforge | Found Cep. XC Strikerail 35288 | -2/Protoforge | Found Cep. XC Strikerail 35291 | -2/Protoforge | Found Exp. Weapon Cycler 35298 | -2/Protoforge | Found Cep. Chromion Battery 35312 | -2/Protoforge | Spotted V129-p 35433 | -2/Protoforge | Spotted Decapitator 35433 | -2/Protoforge | Spotted Decapitator 35433 | -2/Protoforge | Spotted Decapitator 35433 | -2/Protoforge | Spotted Decapitator 35451 | -2/Protoforge | Destroyed Decapitator 35454 | -2/Protoforge | Destroyed Decapitator 35454 | -2/Protoforge | Destroyed Decapitator 35458 | -2/Protoforge | Destroyed Decapitator 35486 | -2/Protoforge | Found Faulty Femtoactuators 35488 | -2/Protoforge | Found Cep. Weapon Articulator 35490 | -2/Protoforge | Found Cep. Weapon Articulator 35501 | -2/Protoforge | Found Faulty Femtoactuators 35605 | -2/Protoforge | Found Cep. Melee Reflex Suite 35690 | -2/Protoforge | Spotted V854-x 35690 | -2/Protoforge | Spotted V048-z 35707 | -2/Protoforge | Spotted Immortal 35707 | -2/Protoforge | Spotted Immortal 35828 | -2/Protoforge | Found Faulty Cep. Melee Reflex Suite 36058 | -2/Protoforge | Found Cep. Disintegration Ray 36061 | -2/Protoforge | Found Faulty Cep. Disintegration Ray 36326 | -2/Protoforge | Spotted AP7-3 36326 | -2/Protoforge | Spotted AP7-3 36340 | -2/Protoforge | Destroyed AP7-3 36340 | -2/Protoforge | Destroyed AP7-3 36383 | -2/Protoforge | Found Cep. Cloak Mesh 36389 | -2/Protoforge | Found Faulty Cep. Cloak Mesh 36394 | -2/Protoforge | Found Faulty Cep. Thermoelectric Network 36550 | -2/Protoforge | Found Cep. Miniperforator 36553 | -2/Protoforge | Found Cep. Plasma Driver 36576 | -2/Protoforge | Found Cep. Plasma Driver 36579 | -2/Protoforge | Found Cep. Plasma Driver 36606 | -2/Protoforge | Found Cep. Miniperforator 36611 | -2/Protoforge | Identified Subatomic Replicator 36611 | -2/Protoforge | Used Subatomic Replicator to replicate Faulty Cep. Thermoelectric Network 36659 | -2/Protoforge | UFD reported confirmed Drillbomb installation 36699 | -2/Protoforge | Spotted V840-z 36707 | -2/Protoforge | Destroyed V840-z 36717 | -2/Protoforge | Found Prototype Device 36717 | -2/Protoforge | Identified Exp. Thermal Defense Suite 36738 | -2/Protoforge | Destroyed Immortal 36740 | -2/Protoforge | Destroyed Immortal 36743 | -2/Protoforge | Found Cep. Smart ZDS 36753 | -2/Protoforge | Found Exp. Weapon Cycler 36879 | -2/Protoforge | Found Cep. Countertargeting System 36904 | -2/Protoforge | Found Cep. Hypertargeting System 37316 | -2/Protoforge | Destroyed V129-p 37351 | -2/Protoforge | Found Faulty Cep. Zero-point Core 37355 | -2/Protoforge | Found Faulty Cep. Zero-point Core 37488 | -2/Protoforge | Build established: Scavenger-Gunner 37587 | -2/Protoforge | Found Cep. NT7 Matterbank 37589 | -2/Protoforge | Found Cep. NT7 Matterbank 37745 | -2/Protoforge | Found Exp. Kinecellerator 37752 | -2/Protoforge | Found Faulty Exp. Kinecellerator 37876 | -2/Protoforge | Found Cep. Helical Railcannon 37890 | -2/Protoforge | Found Cep. Helical Railcannon 37908 | -2/Protoforge | Found Cep. Helical Railcannon 38108 | -2/Protoforge | Spotted Executioner 38110 | -2/Protoforge | Spotted Immortal 38110 | -2/Protoforge | Spotted Hotshot 38113 | -2/Protoforge | Spotted Executioner 38133 | -2/Protoforge | Destroyed Executioner 38138 | -2/Protoforge | Destroyed Executioner 38154 | -2/Protoforge | Spotted Hotshot 38164 | -2/Protoforge | Spotted Striker 38164 | -2/Protoforge | Destroyed Striker 38175 | -2/Protoforge | Destroyed Hotshot 38207 | -2/Protoforge | Spotted Hotshot 38209 | -2/Protoforge | Destroyed Hotshot 38223 | -2/Protoforge | Found Exp. Core Analyzer 38224 | -2/Protoforge | Spotted Immortal 38242 | -2/Protoforge | Destroyed 15 combat bots 38246 | -2/Protoforge | Destroyed Immortal 38599 | -2/Protoforge | Destroyed Immortal 38617 | -2/Protoforge | Spotted Executioner 38625 | -2/Protoforge | Destroyed Executioner 38630 | -2/Protoforge | Spotted Executioner 38633 | -2/Protoforge | Found Exp. Core Analyzer 38669 | -2/Protoforge | Destroyed Executioner 38714 | -2/Protoforge | Spotted Immortal 38716 | -2/Protoforge | Spotted Striker 38716 | -2/Protoforge | Destroyed Striker 38723 | -2/Protoforge | Spotted Executioner 38731 | -2/Protoforge | Destroyed Immortal 38740 | -2/Protoforge | Spotted Striker 38746 | -2/Protoforge | Destroyed Striker 38767 | -2/Protoforge | Destroyed Striker 38774 | -2/Protoforge | Destroyed Executioner 38777 | -2/Protoforge | Warped through subspace 38815 | -2/Protoforge | Spotted Striker 38817 | -2/Protoforge | Destroyed Striker 38820 | -2/Protoforge | Spotted Striker 38826 | -2/Protoforge | Destroyed Striker 38850 | -2/Protoforge | Core integrity fell below 20% 38868 | -2/Protoforge | Spotted Executioner 38869 | -2/Protoforge | Destroyed Executioner 38873 | -2/Protoforge | Spotted Executioner 38875 | -2/Protoforge | Destroyed Executioner 39040 | -2/Protoforge | Destroyed 02F31-K 39053 | -2/Protoforge | P-80 Master assimilated allied 98-JPM(j) 39064 | -2/Protoforge | Spotted Executioner 39064 | -2/Protoforge | Spotted Executioner 39065 | -2/Protoforge | Destroyed Executioner 39067 | -2/Protoforge | Destroyed Executioner 39091 | -2/Protoforge | Lost 11 allies 39097 | -2/Protoforge | Spotted Executioner 39101 | -2/Protoforge | Destroyed Executioner 39110 | -2/Protoforge | Spotted Striker 39111 | -2/Protoforge | Spotted Striker 39113 | -2/Protoforge | Spotted Executioner 39114 | -2/Protoforge | Destroyed Striker 39114 | -2/Protoforge | Destroyed Executioner 39116 | -2/Protoforge | Destroyed Striker 39120 | -2/Protoforge | Spotted Executioner 39122 | -2/Protoforge | Destroyed Executioner 39162 | -2/Protoforge | Destroyed 23 combat bots 39175 | -2/Protoforge | Spotted Executioner 39177 | -2/Protoforge | Destroyed Executioner 39185 | -2/Protoforge | Spotted Executioner 39186 | -2/Protoforge | Destroyed Executioner 39190 | -2/Protoforge | Spotted Executioner 39198 | -2/Protoforge | Destroyed Executioner 39216 | -2/Protoforge | Spotted Striker 39217 | -2/Protoforge | Destroyed Striker 39222 | -2/Protoforge | Spotted Striker 39223 | -2/Protoforge | Destroyed Striker 39256 | -2/Protoforge | Spotted Striker 39258 | -2/Protoforge | Spotted Executioner 39258 | -2/Protoforge | Spotted Striker 39260 | -2/Protoforge | Destroyed Striker 39262 | -2/Protoforge | Destroyed Striker 39264 | -2/Protoforge | Destroyed Executioner 39287 | -2/Protoforge | Spotted Executioner 39290 | -2/Protoforge | Destroyed Executioner 39290 | -2/Protoforge | UFD reported confirmed Drillbomb installation 39295 | -2/Protoforge | Spotted Striker 39299 | -2/Protoforge | Destroyed Striker 39320 | -2/Protoforge | Destroyed 39 combat bots 39323 | -2/Protoforge | UFD reported confirmed Drillbomb installation 39328 | -2/Protoforge | Lost 6 allies 39336 | -2/Protoforge | Spotted Striker 39336 | -2/Protoforge | Spotted Executioner 39350 | -2/Protoforge | Destroyed Striker 39353 | -2/Protoforge | Destroyed Executioner 39355 | -2/Protoforge | Spotted Striker 39356 | -2/Protoforge | Spotted Executioner 39377 | -2/Protoforge | Destroyed Striker 39381 | -2/Protoforge | Destroyed Executioner 39405 | -2/Protoforge | Spotted Striker 39437 | -2/Protoforge | Lost 5 allies 39439 | -2/Protoforge | Destroyed 18 combat bots 39518 | -2/Protoforge | Spotted Striker 39518 | -2/Protoforge | Spotted Executioner 39530 | -2/Protoforge | Destroyed Striker 39534 | -2/Protoforge | Lost 6 allies 39534 | -2/Protoforge | Destroyed Executioner 39564 | -2/Protoforge | Destroyed 7 combat bots 39575 | -2/Protoforge | Spotted Striker 39576 | -2/Protoforge | Destroyed Executioner 39577 | -2/Protoforge | Destroyed Striker 39604 | -2/Protoforge | Destroyed 7 combat bots 39630 | -2/Protoforge | Spotted Executioner 39630 | -2/Protoforge | Spotted Executioner 39630 | -2/Protoforge | Spotted Striker 39630 | -2/Protoforge | Spotted Striker 39631 | -2/Protoforge | Spotted Hotshot 39634 | -2/Protoforge | Destroyed Executioner 39635 | -2/Protoforge | Destroyed Executioner 39640 | -2/Protoforge | Destroyed Striker 39642 | -2/Protoforge | Destroyed Striker 39651 | -2/Protoforge | Destroyed Hotshot 39653 | -2/Protoforge | Destroyed Hotshot 39655 | -2/Protoforge | Spotted Striker 39655 | -2/Protoforge | Spotted Executioner 39658 | -2/Protoforge | Destroyed Executioner 39660 | -2/Protoforge | Destroyed Striker 39683 | -2/Protoforge | Destroyed 21 combat bots 39757 | -2/Protoforge | Spotted Striker 39757 | -2/Protoforge | Spotted Striker 39761 | -2/Protoforge | Destroyed Striker 39772 | -2/Protoforge | Spotted Striker 39775 | -2/Protoforge | Destroyed Striker 39780 | -2/Protoforge | Spotted Executioner 39780 | -2/Protoforge | Spotted Striker 39782 | -2/Protoforge | Destroyed Striker 39783 | -2/Protoforge | Destroyed Executioner 39804 | -2/Protoforge | Destroyed 7 combat bots 39845 | -2/Protoforge | Spotted Striker 39848 | -2/Protoforge | Spotted Striker 39849 | -2/Protoforge | Spotted Executioner 39850 | -2/Protoforge | Spotted Executioner 39854 | -2/Protoforge | Destroyed Executioner 39860 | -2/Protoforge | Destroyed Striker 39863 | -2/Protoforge | Destroyed Striker 39912 | -2/Protoforge | Destroyed 10 combat bots 39939 | -2/Protoforge | Lost 5 allies 39942 | -2/Protoforge | Destroyed Executioner 39952 | -2/Protoforge | Spotted Executioner 39955 | -2/Protoforge | Destroyed Executioner 39958 | -2/Protoforge | Spotted Executioner 39970 | -2/Protoforge | Spotted Executioner 39971 | -2/Protoforge | Spotted Executioner 39975 | -2/Protoforge | Destroyed Executioner 39979 | -2/Protoforge | Destroyed Executioner 39985 | -2/Protoforge | Spotted Executioner 39985 | -2/Protoforge | Spotted Executioner 39986 | -2/Protoforge | Spotted Executioner 39994 | -2/Protoforge | Spotted Striker 40045 | -2/Protoforge | Destroyed 17 combat bots 40045 | -2/Protoforge | Spotted Executioner 40046 | -2/Protoforge | Spotted Executioner 40050 | -2/Protoforge | Destroyed Executioner 40059 | -2/Protoforge | Spotted Striker 40061 | -2/Protoforge | Destroyed Executioner 40061 | -2/Protoforge | Spotted Striker 40076 | -2/Protoforge | Spotted Executioner 40076 | -2/Protoforge | Destroyed Striker 40084 | -2/Protoforge | Spotted Executioner 40084 | -2/Protoforge | Destroyed Striker 40095 | -2/Protoforge | Destroyed Executioner 40097 | -2/Protoforge | Destroyed Executioner 40128 | -2/Protoforge | Destroyed 20 combat bots 40128 | -2/Protoforge | Lost 13 allies 40156 | -2/Protoforge | Spotted Executioner 40164 | -2/Protoforge | Spotted Executioner 40164 | -2/Protoforge | Destroyed Executioner 40165 | -2/Protoforge | Destroyed Executioner 40235 | -2/Protoforge | Spotted Striker 40235 | -2/Protoforge | Spotted Striker 40236 | -2/Protoforge | Spotted Striker 40238 | -2/Protoforge | Spotted Striker 40239 | -2/Protoforge | Destroyed Striker 40239 | -2/Protoforge | Destroyed Striker 40246 | -2/Protoforge | P-80 Master assimilated allied 02FNF-D 40246 | -2/Protoforge | Destroyed Striker 40249 | -2/Protoforge | Destroyed Striker 40257 | -2/Protoforge | Spotted Striker 40260 | -2/Protoforge | Spotted Striker 40268 | -2/Protoforge | Destroyed Striker 40270 | -2/Protoforge | Destroyed Striker 40297 | -2/Protoforge | UFD reported confirmed Drillbomb installation 40298 | -2/Protoforge | Destroyed 15 combat bots 40329 | -2/Protoforge | Spotted Executioner 40329 | -2/Protoforge | Spotted Executioner 40329 | -2/Protoforge | Spotted Striker 40329 | -2/Protoforge | Spotted Striker 40329 | -2/Protoforge | Destroyed Striker 40333 | -2/Protoforge | Destroyed Striker 40337 | -2/Protoforge | Destroyed Executioner 40354 | -2/Protoforge | Spotted Executioner 40354 | -2/Protoforge | Spotted Executioner 40356 | -2/Protoforge | Destroyed Executioner 40357 | -2/Protoforge | Destroyed Executioner 40380 | -2/Protoforge | Destroyed 20 combat bots 40429 | -2/Protoforge | Spotted Striker 40429 | -2/Protoforge | Spotted Executioner 40429 | -2/Protoforge | Spotted Striker 40429 | -2/Protoforge | Spotted Striker 40429 | -2/Protoforge | Destroyed Striker 40430 | -2/Protoforge | Destroyed Striker 40451 | -2/Protoforge | Destroyed 10 combat bots 40454 | -2/Protoforge | Spotted Executioner 40454 | -2/Protoforge | Spotted Executioner 40455 | -2/Protoforge | Destroyed Executioner 40457 | -2/Protoforge | Destroyed Executioner 40463 | -2/Protoforge | UFD reported confirmed Drillbomb installation 40472 | -2/Protoforge | Found Exp. Targeting Computer 40478 | -2/Protoforge | Found Exp. Targeting Computer 40529 | -2/Protoforge | Spotted Executioner 40529 | -2/Protoforge | Spotted Executioner 40529 | -2/Protoforge | Spotted Striker 40529 | -2/Protoforge | Spotted Striker 40530 | -2/Protoforge | Destroyed Executioner 40533 | -2/Protoforge | Destroyed Executioner 40535 | -2/Protoforge | Destroyed Striker 40540 | -2/Protoforge | Destroyed Striker 40554 | -2/Protoforge | Spotted Executioner 40561 | -2/Protoforge | Destroyed 10 combat bots 40565 | -2/Protoforge | Spotted Executioner 40596 | -2/Protoforge | Lost 3 allies 40631 | -2/Protoforge | Spotted Striker 40631 | -2/Protoforge | Spotted Executioner 40631 | -2/Protoforge | Spotted Striker 40631 | -2/Protoforge | Spotted Striker 40632 | -2/Protoforge | Destroyed Striker 40634 | -2/Protoforge | Destroyed Striker 40639 | -2/Protoforge | Destroyed Striker 40641 | -2/Protoforge | Destroyed Executioner 40655 | -2/Protoforge | Spotted Striker 40664 | -2/Protoforge | Spotted Executioner 40674 | -2/Protoforge | Destroyed Executioner 40678 | -2/Protoforge | Destroyed Striker 40691 | -2/Protoforge | Lost 4 allies 40699 | -2/Protoforge | Destroyed 22 combat bots 40729 | -2/Protoforge | Spotted Striker 40729 | -2/Protoforge | Spotted Striker 40729 | -2/Protoforge | Spotted Striker 40730 | -2/Protoforge | Spotted Striker 40734 | -2/Protoforge | Destroyed Striker 40737 | -2/Protoforge | Destroyed Striker 40737 | -2/Protoforge | Destroyed Striker 40740 | -2/Protoforge | Destroyed Striker 40754 | -2/Protoforge | Spotted Executioner 40754 | -2/Protoforge | Spotted Executioner 40761 | -2/Protoforge | Destroyed 14 combat bots 40766 | -2/Protoforge | Lost 4 allies 40788 | -2/Protoforge | Destroyed Executioner 40792 | -2/Protoforge | Destroyed Executioner 40817 | -2/Protoforge | Found Exp. Targeting Computer 40872 | -2/Protoforge | Spotted Striker 40874 | -2/Protoforge | Spotted Executioner 40875 | -2/Protoforge | Spotted Executioner 40876 | -2/Protoforge | Destroyed Executioner 40879 | -2/Protoforge | Destroyed Executioner 40887 | -2/Protoforge | Spotted Striker 40889 | -2/Protoforge | Spotted Executioner 40892 | -2/Protoforge | Destroyed Striker 40894 | -2/Protoforge | Destroyed Executioner 40914 | -2/Protoforge | Found Exp. Core Analyzer 40924 | -2/Protoforge | Destroyed 13 combat bots 40927 | -2/Protoforge | Lost 4 allies 40941 | -2/Protoforge | Spotted Striker 40942 | -2/Protoforge | Spotted Striker 40943 | -2/Protoforge | Destroyed Striker 40945 | -2/Protoforge | Destroyed Striker 40945 | -2/Protoforge | Spotted Executioner 40948 | -2/Protoforge | Destroyed Executioner 40950 | -2/Protoforge | Spotted Executioner 40953 | -2/Protoforge | Destroyed Executioner 40955 | -2/Protoforge | Spotted Striker 40956 | -2/Protoforge | Destroyed Executioner 40965 | -2/Protoforge | UFD reported confirmed Drillbomb installation 40967 | -2/Protoforge | Destroyed Striker 40987 | -2/Protoforge | Lost 3 allies 40993 | -2/Protoforge | Destroyed 18 combat bots 41029 | -2/Protoforge | Destroyed Executioner 41033 | -2/Protoforge | Spotted Striker 41036 | -2/Protoforge | Destroyed Striker 41038 | -2/Protoforge | Spotted Executioner 41038 | -2/Protoforge | Spotted Executioner 41041 | -2/Protoforge | Destroyed Executioner 41055 | -2/Protoforge | Destroyed Executioner 41096 | -2/Protoforge | Lost 5 allies 41122 | -2/Protoforge | Destroyed 7 combat bots 41123 | -2/Protoforge | Spotted Striker 41125 | -2/Protoforge | Destroyed Striker 41142 | -2/Protoforge | Spotted Striker 41144 | -2/Protoforge | Spotted Striker 41149 | -2/Protoforge | Destroyed Striker 41153 | -2/Protoforge | Destroyed Striker 41211 | -2/Protoforge | Destroyed 11 combat bots 41346 | -2/Protoforge | Lost 3 allies 41359 | -2/Protoforge | Spotted Striker 41360 | -2/Protoforge | Spotted Executioner 41361 | -2/Protoforge | Destroyed Striker 41362 | -2/Protoforge | Spotted Executioner 41364 | -2/Protoforge | Destroyed Executioner 41364 | -2/Protoforge | Destroyed Executioner 41364 | -2/Protoforge | Destroyed Executioner 41370 | -2/Protoforge | Spotted Striker 41370 | -2/Protoforge | Spotted Striker 41372 | -2/Protoforge | Destroyed Striker 41415 | -2/Protoforge | Destroyed 10 combat bots 41431 | -2/Protoforge | Spotted Striker 41431 | -2/Protoforge | Spotted Striker 41433 | -2/Protoforge | Spotted Striker 41442 | -2/Protoforge | Destroyed Striker 41442 | -2/Protoforge | Destroyed Striker 41447 | -2/Protoforge | Destroyed Striker 41467 | -2/Protoforge | Spotted Executioner 41470 | -2/Protoforge | Destroyed Executioner 41471 | -2/Protoforge | Spotted Executioner 41474 | -2/Protoforge | Destroyed Executioner 41490 | -2/Protoforge | Lost 5 allies 41495 | -2/Protoforge | Destroyed 14 combat bots 41548 | -2/Protoforge | UFD reported confirmed Drillbomb installation 41617 | -2/Protoforge | P-80 Master assimilated allied 02FPK-D 41625 | -2/Protoforge | Destroyed Executioner 41637 | -2/Protoforge | Spotted Executioner 41642 | -2/Protoforge | Destroyed Executioner 41661 | -2/Protoforge | Spotted Striker 41661 | -2/Protoforge | Destroyed Striker 41662 | -2/Protoforge | Spotted Striker 41664 | -2/Protoforge | Destroyed Striker 41669 | -2/Protoforge | Lost 10 allies 41685 | -2/Protoforge | Destroyed 9 combat bots 41728 | -2/Protoforge | UFD reported confirmed Drillbomb installation 41729 | -2/Protoforge | Spotted Striker 41729 | -2/Protoforge | Spotted Striker 41729 | -2/Protoforge | Spotted Striker 41729 | -2/Protoforge | Spotted Executioner 41729 | -2/Protoforge | Destroyed Striker 41735 | -2/Protoforge | Destroyed Executioner 41756 | -2/Protoforge | Destroyed 10 combat bots 41756 | -2/Protoforge | Destroyed Striker 41784 | -2/Protoforge | Lost 3 allies 42041 | -2/Protoforge | Spotted Executioner 42047 | -2/Protoforge | Spotted Executioner 42047 | -2/Protoforge | Destroyed Executioner 42075 | -2/Protoforge | Destroyed 8 combat bots 42114 | -2/Protoforge | Lost 8 allies 42133 | -2/Protoforge | Destroyed Executioner 42200 | -2/Protoforge | Spotted Executioner 42201 | -2/Protoforge | Destroyed Executioner 42208 | -2/Protoforge | Spotted Striker 42219 | -2/Protoforge | P-80 Master assimilated allied W5-04K(E) 42222 | -2/Protoforge | Destroyed Striker 42242 | -2/Protoforge | Spotted Striker 42245 | -2/Protoforge | Destroyed Striker 42246 | -2/Protoforge | Spotted Striker 42248 | -2/Protoforge | Destroyed Striker 42307 | -2/Protoforge | Destroyed 19 combat bots 42334 | -2/Protoforge | Spotted Executioner 42335 | -2/Protoforge | Destroyed Executioner 42335 | -2/Protoforge | Spotted Striker 42337 | -2/Protoforge | Destroyed Striker 42367 | -2/Protoforge | Destroyed Executioner 42368 | -2/Protoforge | Spotted Executioner 42436 | -2/Protoforge | Spotted Striker 42437 | -2/Protoforge | Spotted Executioner 42439 | -2/Protoforge | Destroyed Executioner 42442 | -2/Protoforge | Destroyed Striker 42452 | -2/Protoforge | Spotted Striker 42455 | -2/Protoforge | Destroyed Striker 42476 | -2/Protoforge | Destroyed 10 combat bots 42495 | -2/Protoforge | Lost 4 allies 42605 | -2/Protoforge | UFD reported confirmed Drillbomb installation 42606 | -2/Protoforge | UFD began Drillbomb countdown 42706 | *** | Defending 0bPrime! Last Messages --------------- 42667_ System corrupted: Energy discharge (-230). 42669_ Acquired 36 matter. 42670_ Acquired 41 matter. 42682_ System corrupted: Matter fused (-5). 42696_ 0bP_NET: T-10 until detonation, we won! 42696_ Slug penetrates M-36 Artificer. 42697_ 0bP_NET: Not to be a pessimist, but you all realize we still have to deal with that big fortress thing, yeah? 42698_ 0bP_NET: All while quickly harvesting the forge for new prototypes. 42699_ 0bP_NET: And the imminent need to use that advantage to take full control of 0b1... 42700_ 0bP_NET: Tall orders all around! 42700_ M-36 Artificer suffers critical hit (Destroy). 42701_ 0bP_NET: Your pep talk needs some work. 42702_ 0bP_NET: Shut your pi-hole, I'm just being a realist. 42703_ 0bP_NET: Things are about to get real, indeed. T-3! 42704_ 0bP_NET: First dibs on the next iteration of our Scrapsuit! 42705_ 0bP_NET: Ha, who wants more upgrades to that old thing, the proto-powered Scrap Engine is where it's at. [Achievement: 100k Club] Map ----- +----------------------------------------------------+ | ##??### % %%%%%% %""""""""""""""""""""""""""" | | ??????# " % %%%%%%%%!""""""""""""""""""""""""""" | | ???#### % %%%%%%""""""""""""""""""""""""""" | | ??? # % *%%%%%"""""""""""""""""""""""""" | | ??? # |*%%%%"""""""""""""""""""""""""" | | #### # "% [!%%%%"""""""""""""""""""""""""" | | ####""# "" !!=%%%""""""""""""""""""""""""" | | ! " ## %% %!%%%%%"""""""""""""""""""""""% | | "" ## %[%%%%"""""""""""""""""""""%% | | ! " ## " %!=[%%%"""""""""""""""""""%% | | "" "" %%=%%%%"""""""""""""""""% %% | | "" "" %%%=!%%%%"""""""""""""""%%%% | | "" "" " % %%%%%%%%""""""""" %%%% % | | "" "" " % " %%%%n%%%%%%%%% %"" | | "" #"= " " "% % %%%%%%%%%%%%%% %%% | | ## ! " """ % % % %%%%%%%=%%%* ![ % | | #######% % % ![%%%[%%%% | | ####### " " " " % % % %!%![%% % " | | ####?## m %% %!![% *%%%% | | ##?## " " """ % %%%!%[ % " | | ##?## " " % % % ! % | | ##?## " "" % | | ##?## "" " "" " E" | | ##### % "" " % " | | ## " " " | | +####""% @ % " "" | | "" | | " ""%/ " | | "" #"#""";;; ########### ###################### | | "# # # """# " " "????????????? | | "/"#### # ####### # # "" ;""""""""#?????????## | | " ###### ############# ## #?????????#" | | ######## # ###?######### ## # # ##?????????#" | | ^ ##????##### ###????????#####?#######??????????# | | ##????###### ###??????????????????????????????# | | ##????????### ###?????????????????????????????# | | ##?????????### ##?????????????????????????????#" | | #####???????#####?????????????????????????????#" | | #+#####????????####?????????????????????????????## | | ?##??????????????????????????????????????????? | | ?????##??????????????????????????????????????????? | | ?????##??????????????????????????????????????????? | | ?????##??????????????????????????????????????????? | | ?????##??????????????????????????????????????????? | | ?????##??????????????????????????????????????????? | | #######??????????????????????????????????????????? | | #######??????????????????????????????????????????? | | ?????????????????????????????????????????????????? | | ?????????????????????????????????????????????????? | | ?????????????????????????????????????????????????? | +----------------------------------------------------+ Best States ------------- Heat Dissipation 169 Coolant Potential 50 Energy Generation 89 Energy Capacity 1900 Matter Stores 1050 Matter Capacity 1050 Sight Range 24 Robot Scan Range 16 Terrain Scan Density 210 Jamming Range 16 Cloak Strength 9 Base Temperature (-) 200 Armor Coverage 900 Resistance: TH 15 Resistance: EM 75 Core Shielding 90 Utility Shielding 66 Point Defense Rating 480 Weapon Cycling 30 Melee Speed Boost 50 Phase Shifting 25 Evasion (%) 113 Targeting Accuracy 42 Melee Accuracy 12 Target Analysis 6 Core Analysis 12 Armor Integrity Analysis 50 Recoil Reduction 4 Matter Filtering 50 Energy Filtering 50 Particle Charging 50 Kinecelleration 66 Offensive Hacking 21 Defensive Hacking 32 Relay Coupler Types 1 Relay Coupler Value 33 Authchip Count 1 Item Schematics ----------------- Flak Cannon | -8/Recycling | Hacked Enh. Biometal Leg | -4/Factory | Scanalyzed Cld. Impulse Thruster | -3/Testing | Archive Molecular Scythe | -3/Testing | Archive Prc. Energy Filter | -3/Testing | Archive Adv. EM Disruption Field | -3/Testing | Archive Imp. Quantum Reactor | -2/Protoforge | Archive Imp. KE Penetrator | -2/Protoforge | Archive Imp. Diametric Drive | -2/Protoforge | Archive Robot Schematics ------------------ M-28 Smith | -8/Recycling | Hacked E-15 Imp | -3/Testing | Archive R-06 Scavenger | -2/Protoforge | Archive Fabricated ------------ Imp. Linear Gravjet | x2 | -4/Factory | Preloaded Prc. Energy Filter | x1 | -2/Protoforge | Authchip Repaired ---------- Gauss Rifle | 14% | -6/Factory Adv. KE Penetrator | 31% | -4/Factory Imp. Proton Missile Launcher | 71% | -4/Factory Launcher Loader | 40% | -3/Research Imp. Medium Armor Plating | 21% | -3/Testing Particle Reactor | 14% | -2/Quarantine | Broken Centrium Leg | 17% | -2/Quarantine Studied --------- Imp. Deuterium Engine | -5/Factory | Hacked Neutrino Core | -5/Factory | Hacked Flexi-carbon Leg | -5/Factory | Hacked Plasma Rifle | -5/Factory | Hacked Imp. Proton Missile Launcher | -5/Factory | Hacked KE Penetrator | -5/Factory | Hacked Railgun | -4/Factory | Hacked Antigrav System | -4/Factory | Hacked Biometal Leg | -3/Research | Hacked Lgt. Antimatter Reactor | -3/Research | Hacked Centrium Leg | -3/Testing | Hacked Enh. Nova Cannon | -3/Testing | Hacked Particle Reactor | -3/Testing | Hacked Antimatter Reactor | -3/Testing | Hacked Spear | -3/Testing | Hacked HERF Cannon | -3/Testing | Hacked Quantum Reactor | -2/Quarantine | Hacked Alien Tech Used ----------------- Core Expander Integrated Dissipator Sigix Broadsword Subatomic Replicator Transdimensional Reconstructor Achievements -------------- 100k Club All Kinds Of Bad News Analysis Probe Better Safe Than Exploded Bumper Bots Deadly Precision Definitely A Prototype Do Not Disturb Ghost 'Em Hack The Planet Immobile And Lovin' It Insider Info May I Have Another? Network Effect Not Immortal After All Power Plant Red Leader Tailor-made The Better Part Of Valor Thread The Needle Around The Corner Uncivil War Weapon Of Power Well-fed Force Field Worth The Wait You May Approach The Wall Challenges ------------ None Game ------ Seed NeutronArmageddonMapper Manual? 0 Play Time 09:15:18 Cumulative 654.8 hours Start 2025.11.24 @ 20:04:17 End 2025.11.25 @ 19:41:30 Sessions 5 Manual Loads 0 Difficulty Rogue Special Mode None Game No. 218 Rogue 202 Adventurer 15 Explorer 1 Win Type 9 Total 39 Types 10/3/10/2/2/0/6/3/1/2 Lore% 93 Gallery% 88 Achievement% 63 Wizard Run 0 Options --------- Layout 0 ASCII 0 Keyboard 0 Movement Numpad Keybinds 0 Fullscreen 1 Font 18/SmallcapsGlow Map View 76x50 Zoom Use 0% Tactical HUD 1 Map Filters NONE Filters NONE Steam 1 RUN: ac36cbee-3ea7-41f8-8d10-f6368d513a50